Workbook

Sheet INFLATION (hidden)
B1: I | C1: I | D1: I | E1: I | G1: CI | H1: CI | I1: CI | J1: CI
B2: INBASE | C2: INBASE | D2: INBASE | E2: INBASE | G2: INBASE | H2: INBASE | I2: INBASE | J2: INBASE
B3: 999 | C3: 999 | D3: 999 | E3: 999 | G3: 999 | H3: 999 | I3: 999 | J3: 999
B4: 2013 | C4: 2014 | D4: 2015 | E4: 2016 | G4: 2013 | H4: 2014 | I4: 2015 | J4: 2016
A5: ICU | B5: 0.06 | C5: 0.06 | D5: 0.06 | E5: 0.06 | G5: 1.06 | H5: 1.1236 | I5: 1.191016 | J5: 1.26247696
A6: NIC | B6: 0.06 | C6: 0.06 | D6: 0.06 | E6: 0.06 | G6: 1.06 | H6: 1.1236 | I6: 1.191016 | J6: 1.26247696
A7: ONS | B7: 0.06 | C7: 0.06 | D7: 0.06 | E7: 0.06 | G7: 1.06 | H7: 1.1236 | I7: 1.191016 | J7: 1.26247696
A8: PED | B8: 0.06 | C8: 0.06 | D8: 0.06 | E8: 0.06 | G8: 1.06 | H8: 1.1236 | I8: 1.191016 | J8: 1.26247696
A9: WNO | B9: 0.06 | C9: 0.06 | D9: 0.06 | E9: 0.06 | G9: 1.06 | H9: 1.1236 | I9: 1.191016 | J9: 1.26247696
A10: AOIP | B10: 0.06 | C10: 0.06 | D10: 0.06 | E10: 0.06 | G10: 1.06 | H10: 1.1236 | I10: 1.191016 | J10: 1.26247696
A11: CVS | B11: 0.06 | C11: 0.06 | D11: 0.06 | E11: 0.06 | G11: 1.06 | H11: 1.1236 | I11: 1.191016 | J11: 1.26247696
A12: EDR | B12: 0.06 | C12: 0.06 | D12: 0.06 | E12: 0.06 | G12: 1.06 | H12: 1.1236 | I12: 1.191016 | J12: 1.26247696
A13: IMG | B13: 0.06 | C13: 0.06 | D13: 0.06 | E13: 0.06 | G13: 1.06 | H13: 1.1236 | I13: 1.191016 | J13: 1.26247696
A14: SUR | B14: 0.06 | C14: 0.06 | D14: 0.06 | E14: 0.06 | G14: 1.06 | H14: 1.1236 | I14: 1.191016 | J14: 1.26247696
A15: AOOP | B15: 0.06 | C15: 0.06 | D15: 0.06 | E15: 0.06 | G15: 1.06 | H15: 1.1236 | I15: 1.191016 | J15: 1.26247696
A16: SVREV | B16: 0.03 | C16: 0.03 | D16: 0.03 | E16: 0.03 | G16: 1.03 | H16: 1.0609 | I16: 1.092727 | J16: 1.12550881
A17: LTREV | B17: 0.03 | C17: 0.03 | D17: 0.03 | E17: 0.03 | G17: 1.03 | H17: 1.0609 | I17: 1.092727 | J17: 1.12550881
A18: OOR | B18: 0.015 | C18: 0.015 | D18: 0.015 | E18: 0.015 | G18: 1.015 | H18: 1.030225 | I18: 1.045678375 | J18: 1.061363551
A20: MCARE | B20: 0 | C20: 0 | D20: 0 | E20: 0 | G20: 1 | H20: 1 | I20: 1 | J20: 1
A21: MCAID | B21: 0 | C21: 0 | D21: 0 | E21: 0 | G21: 1 | H21: 1 | I21: 1 | J21: 1
A23: SELECTH | B23: 0 | C23: 0 | D23: 0 | E23: 0 | G23: 1 | H23: 1 | I23: 1 | J23: 1
A24: CONT | B24: 0 | C24: 0 | D24: 0 | E24: 0 | G24: 1 | H24: 1 | I24: 1 | J24: 1
A25: NCONT | B25: 0 | C25: 0 | D25: 0 | E25: 0 | G25: 1 | H25: 1 | I25: 1 | J25: 1
A26: UNINS | B26: 0 | C26: 0 | D26: 0 | E26: 0 | G26: 1 | H26: 1 | I26: 1 | J26: 1
A27: CHAR | B27: 0 | C27: 0 | D27: 0 | E27: 0 | G27: 1 | H27: 1 | I27: 1 | J27: 1
A28: BDEBT | B28: 0 | C28: 0 | D28: 0 | E28: 0 | G28: 1 | H28: 1 | I28: 1 | J28: 1
A29: ODED | B29: 0 | C29: 0 | D29: 0 | E29: 0 | G29: 1 | H29: 1 | I29: 1 | J29: 1
A31: TSAL | B31: 0.03 | C31: 0.03 | D31: 0.03 | E31: 0.03 | G31: 1.03 | H31: 1.0609 | I31: 1.092727 | J31: 1.12550881
A32: PHY | B32: 0.02 | C32: 0.02 | D32: 0.02 | E32: 0.02 | G32: 1.02 | H32: 1.0404 | I32: 1.061208 | J32: 1.08243216
A33: RET | B33: 0 | C33: 0 | D33: 0 | E33: 0 | G33: 1 | H33: 1 | I33: 1 | J33: 1
A34: OBEN | B34: 0.07 | C34: 0.07 | D34: 0.07 | E34: 0.07 | G34: 1.07 | H34: 1.1449 | I34: 1.225043 | J34: 1.31079601
A35: TFEE | B35: 0.006 | C35: 0.006 | D35: 0.006 | E35: 0.006 | G35: 1.006 | H35: 1.012036 | I35: 1.018108216 | J35: 1.024216865
A36: MSUP | B36: 0.0447 | C36: 0.0447 | D36: 0.0447 | E36: 0.0447 | G36: 1.0447 | H36: 1.09139809 | I36: 1.140183585 | J36: 1.191149791
A37: NMSUP | B37: 0.0368 | C37: 0.0368 | D37: 0.0368 | E37: 0.0368 | G37: 1.0368 | H37: 1.07495424 | I37: 1.114512556 | J37: 1.155526618
A38: TOPS | B38: 0.0312 | C38: 0.0312 | D38: 0.0312 | E38: 0.0312 | G38: 1.0312 | H38: 1.06337344 | I38: 1.096550691 | J38: 1.130763073
A39: OEXP | B39: 0.0371 | C39: 0.0371 | D39: 0.0371 | E39: 0.0371 | G39: 1.0371 | H39: 1.07557641 | I39: 1.115480295 | J39: 1.156864614
A40: MEXP | B40: 0.048 | C40: 0.048 | D40: 0.048 | E40: 0.048 | G40: 1.048 | H40: 1.098304 | I40: 1.151022592 | J40: 1.206271676
A41: TINS | B41: 0.002306167078 | C41: 0.002287510535 | D41: 0.002287510535 | E41: 0.002287510535 | G41: 1.002306167 | H41: 1.004598953 | I41: 1.006896984 | J41: 1.009200271
A42: TCENT | B42: 0.02939 | C42: 0.02929 | D42: 0.02929 | E42: 0.02929 | G42: 1.02939 | H42: 1.059540833 | I42: 1.090574784 | J42: 1.12251772
A43: TOTE
A44: 4472 | B44: 0 | C44: 0 | D44: 0 | E44: 0 | G44: 1 | H44: 1 | I44: 1 | J44: 1
A45: 4471 | B45: 0.02938227359 | C45: 0.02878521842 | D45: 0.02878521842 | E45: 0.02878521842 | G45: 1.029382274 | H45: 1.059013267 | I45: 1.089497195 | J45: 1.12085861
A46: 4474 | B46: 0 | C46: 0 | D46: 0 | E46: 0 | G46: 1 | H46: 1 | I46: 1 | J46: 1
A47: 4475 | B47: 0.02715365201 | C47: 0.0253182419 | D47: 0.0253182419 | E47: 0.0253182419 | G47: 1.027153652 | H47: 1.053159377 | I47: 1.07982352 | J47: 1.107162754

Sheet TEST - INBASE (hidden)
C1: 2013 | D1: 2014 | E1: 2015 | F1: 2016
C2: INBASE | D2: INBASE | E2: INBASE | F2: INBASE
C3: 999 | D3: 999 | E3: 999 | F3: 999
A4: 9001 | B4: V | C4: 70692 | D4: 72465 | E4: 72465 | F4: 73400 | H4: 9001 | I4: V | J4: =SUM(Stats!E5:E9) -> 0 | K4: =SUM(Stats!F5:F9) -> 0 | L4: =SUM(Stats!G5:G9) -> 0 | M4: =SUM(Stats!H5:H9) -> 0 | O4: =C4-J4 -> 70692 | P4: =D4-K4 -> 72465 | Q4: 72465 | R4: 73400
A5: 9011 | B5: V | C5: 18532 | D5: 19416 | E5: 19416 | F5: 19600 | H5: 9011 | I5: V | J5: =SUM(Stats!E11:E15) -> 0 | K5: =SUM(Stats!F11:F15) -> 0 | L5: =SUM(Stats!G11:G15) -> 0 | M5: =SUM(Stats!H11:H15) -> 0 | O5: =C5-J5 -> 18532 | P5: 19416 | Q5: 19416 | R5: 19600
A7: ICU | B7: V | C7: 21299551.96 | D7: 23028372.96 | E7: 24410075.34 | F7: 26315463.88 | H7: ICU | I7: V | J7: =Stats!E5*Revenue!D5*INFLATION!G5 -> 0 | K7: =Stats!F5*Revenue!E5*INFLATION!H5 -> 0 | L7: =Stats!G5*Revenue!F5*INFLATION!I5 -> 0 | M7: =Stats!H5*Revenue!G5*INFLATION!J5 -> 0 | O7: 21299551.96 | P7: 23028372.96 | Q7: 24410075.34 | R7: 26315463.88
A8: NIC | B8: V | C8: 25413655.99 | D8: 27477310.17 | E8: 29125948.78 | F8: 31189065.66 | H8: NIC | I8: V | J8: =Stats!E6*Revenue!D6*INFLATION!G6 -> 0 | K8: =Stats!F6*Revenue!E6*INFLATION!H6 -> 0 | L8: =Stats!G6*Revenue!F6*INFLATION!I6 -> 0 | M8: =Stats!H6*Revenue!G6*INFLATION!J6 -> 0 | O8: 25413655.99 | P8: 27477310.17 | Q8: 29125948.78 | R8: 31189065.66
A9: ONS | B9: V | C9: 113356543 | D9: 122559340.3 | E9: 129912900.7 | F9: 139113298.7 | H9: ONS | I9: V | J9: =Stats!E7*Revenue!D7*INFLATION!G7 -> 0 | K9: =Stats!F7*Revenue!E7*INFLATION!H7 -> 0 | L9: =Stats!G7*Revenue!F7*INFLATION!I7 -> 0 | M9: =Stats!H7*Revenue!G7*INFLATION!J7 -> 0 | O9: 113356543 | P9: 122559340.3 | Q9: 129912900.7 | R9: 139113298.7
A10: PED | B10: V | C10: 4797494.632 | D10: 5337995.731 | E10: 5658275.475 | F10: 6271748.38 | H10: PED | I10: V | J10: =Stats!E8*Revenue!D8*INFLATION!G8 -> 0 | K10: =Stats!F8*Revenue!E8*INFLATION!H8 -> 0 | L10: =Stats!G8*Revenue!F8*INFLATION!I8 -> 0 | M10: =Stats!H8*Revenue!G8*INFLATION!J8 -> 0 | O10: 4797494.632 | P10: 5337995.731 | Q10: 5658275.475 | R10: 6271748.38
A11: WNO | B11: V | C11: 34697670.24 | D11: 38619939.2 | E11: 40937135.55 | F11: 44254311.2 | H11: WNO | I11: V | J11: =Stats!E9*Revenue!D9*INFLATION!G9 -> 0 | K11: =Stats!F9*Revenue!E9*INFLATION!H9 -> 0 | L11: =Stats!G9*Revenue!F9*INFLATION!I9 -> 0 | M11: =Stats!H9*Revenue!G9*INFLATION!J9 -> 0 | O11: 34697670.24 | P11: 38619939.2 | Q11: 40937135.55 | R11: 44254311.2
A12: AOIP | B12: V | C12: 231430936.1 | D12: 247769960.1 | E12: 265262519.3 | F12: 283990053.2 | H12: AOIP | I12: V | J12: ='TEST - UNBASE'!J12*INFLATION!G10 -> 0 | K12: ='TEST - UNBASE'!K12*INFLATION!H10 -> 0 | L12: ='TEST - UNBASE'!L12*INFLATION!I10 -> 0 | M12: ='TEST - UNBASE'!M12*INFLATION!J10 -> 0 | O12: =C12-J12 -> 231430936.1 | P12: 247769960.1 | Q12: 265262519.3 | R12: 283990053.2
A14: CVS | B14: V | C14: 32373275.57 | D14: 35002043.77 | E14: 37102166.4 | F14: 40073333.25 | H14: CVS | I14: V | J14: =Stats!E20*Revenue!D13*INFLATION!G11 -> 0 | K14: =Stats!F20*Revenue!E13*INFLATION!H11 -> 0 | L14: =Stats!G20*Revenue!F13*INFLATION!I11 -> 0 | M14: =Stats!H20*Revenue!G13*INFLATION!J11 -> 0 | O14: 32373275.57 | P14: 35002043.77 | Q14: 37102166.4 | R14: 40073333.25
A15: IMG | B15: V | C15: 107700235 | D15: 116445667.3 | E15: 123432407.4 | F15: 131821260.7 | H15: IMG | I15: V | J15: =Stats!E21*Revenue!D14*INFLATION!G12 -> 0 | K15: =Stats!F21*Revenue!E14*INFLATION!H12 -> 0 | L15: =Stats!G21*Revenue!F14*INFLATION!I12 -> 0 | M15: =Stats!H21*Revenue!G14*INFLATION!J12 -> 0 | O15: 107700235 | P15: 116445667.3 | Q15: 123432407.4 | R15: 131821260.7
A16: SUR | B16: V | C16: 43832112.63 | D16: 48783585.36 | E16: 51710600.49 | F16: 55246819.15 | H16: SUR | I16: V | J16: =Stats!E22*Revenue!D15*INFLATION!G13 -> 0 | K16: =Stats!F22*Revenue!E15*INFLATION!H13 -> 0 | L16: =Stats!G22*Revenue!F15*INFLATION!I13 -> 0 | M16: =Stats!H22*Revenue!G15*INFLATION!J13 -> 0 | O16: 43832112.63 | P16: 48783585.36 | Q16: 51710600.49 | R16: 55246819.15
A17: EDR | B17: V | C17: 83312778.72 | D17: 92727201.09 | E17: 98290833.15 | F17: 105674775 | H17: EDR | I17: V | J17: =Stats!E23*Revenue!D16*INFLATION!G14 -> 0 | K17: =Stats!F23*Revenue!E16*INFLATION!H14 -> 0 | L17: =Stats!G23*Revenue!F16*INFLATION!I14 -> 0 | M17: =Stats!H23*Revenue!G16*INFLATION!J14 -> 0 | O17: 83312778.72 | P17: 92727201.09 | Q17: 98290833.15 | R17: 105674775
A18: AOOP | B18: V | C18: 117696811.4 | D18: 127253792.5 | E18: 137586800.4 | F18: 148758848.6 | H18: AOOP | I18: V | J18: =Revenue!C17*(1+Revenue!D18)*INFLATION!G15 -> 0 | K18: =Revenue!D17*(1+Revenue!E18)*INFLATION!H15 -> 0 | L18: =Revenue!E17*(1+Revenue!F18)*INFLATION!I15 -> 0 | M18: =Revenue!F17*(1+Revenue!G18)*INFLATION!J15 -> 0 | O18: 117696811.4 | P18: 127253792.5 | Q18: 137586800.4 | R18: 148758848.6
A20: SVREV | B20: V | C20: 0 | D20: 0 | E20: 0 | F20: 0 | H20: SVREV | I20: V | J20: =(SUM(Stats!E5:E9)*Revenue!D20)+Revenue!D21 -> 0 | K20: =(SUM(Stats!F5:F9)*Revenue!E20)+Revenue!E21 -> 0 | L20: =(SUM(Stats!G5:G9)*Revenue!F20)+Revenue!F21 -> 0 | M20: =(SUM(Stats!H5:H9)*Revenue!G20)+Revenue!G21 -> 0 | O20: 0 | P20: 0 | Q20: 0 | R20: 0
A21: LTREV | B21: V | C21: 0 | D21: 0 | E21: 0 | F21: 0 | H21: LTREV | I21: V | J21: =(SUM(Stats!E5:E9)*Revenue!D23)+Revenue!D21 -> 0 | K21: =(SUM(Stats!F5:F9)*Revenue!E23)+Revenue!E21 -> 0 | L21: =(SUM(Stats!G5:G9)*Revenue!F23)+Revenue!F21 -> 0 | M21: =(SUM(Stats!H5:H9)*Revenue!G23)+Revenue!G21 -> 0 | O21: 0 | P21: 0 | Q21: 0 | R21: 0
O22: 0 | P22: 0 | Q22: 0 | R22: 0
A23: OOR | B23: V | C23: 14939464.93 | D23: 15440544.21 | E23: 15742269.06 | F23: 16138222.58 | H23: OOR | I23: V | J23: =(Revenue!D27*INFLATION!G18)+(SUM('TEST - UNBASE'!J7:J21)*Revenue!D26*INFLATION!G18) -> 0 | K23: =(Revenue!E27*INFLATION!H18)+(SUM('TEST - UNBASE'!K7:K21)*Revenue!E26*INFLATION!H18) -> 0 | L23: =(Revenue!F27*INFLATION!I18)+(SUM('TEST - UNBASE'!L7:L21)*Revenue!F26*INFLATION!I18) -> 0 | M23: =(Revenue!G27*INFLATION!J18)+(SUM('TEST - UNBASE'!M7:M21)*Revenue!G26*INFLATION!J18) -> 0 | O23: 14939464.93 | P23: 15440544.21 | Q23: 15742269.06 | R23: 16138222.58
A25: MCARE | B25: MR | C25: 295593498.1 | D25: 320625367.9 | E25: 349068975.3 | F25: 374702321.7 | H25: MCARE | I25: MR | J25: =SUM(J$7:J$21)*Deductions!D5 -> 0 | K25: =SUM(K$7:K$21)*Deductions!E5 -> 0 | L25: =SUM(L$7:L$21)*Deductions!F5 -> 0 | M25: =SUM(M$7:M$21)*Deductions!G5 -> 0 | O25: =C25-J25 -> 295593498.1 | P25: 320625367.9 | Q25: 349068975.3 | R25: 374702321.7
A26: MCAID | B26: MR | C26: 97995315.62 | D26: 106293894.6 | E26: 103777262.9 | F26: 111397987.5 | H26: MCAID | I26: MR | J26: =SUM(J$7:J$21)*Deductions!D6 -> 0 | K26: =SUM(K$7:K$21)*Deductions!E6 -> 0 | L26: =SUM(L$7:L$21)*Deductions!F6 -> 0 | M26: =SUM(M$7:M$21)*Deductions!G6 -> 0 | O26: 97995315.62 | P26: 106293894.6 | Q26: 103777262.9 | R26: 111397987.5
A27: SELECTH | B27: MR | C27: 131358233.7 | D27: 142482098.8 | E27: 149061886.8 | F27: 160008018.5 | H27: SELECTH | I27: MR | J27: =SUM(J$7:J$21)*Deductions!D7 -> 0 | K27: =SUM(K$7:K$21)*Deductions!E7 -> 0 | L27: =SUM(L$7:L$21)*Deductions!F7 -> 0 | M27: =SUM(M$7:M$21)*Deductions!G7 -> 0 | O27: 131358233.7 | P27: 142482098.8 | Q27: 149061886.8 | R27: 160008018.5
A28: CONT | B28: MR | C28: 207483055.2 | D28: 225053430.9 | E28: 247178571.7 | F28: 265329752.2 | H28: CONT | I28: MR | J28: =SUM(J$7:J$21)*Deductions!D8 -> 0 | K28: =SUM(K$7:K$21)*Deductions!E8 -> 0 | L28: =SUM(L$7:L$21)*Deductions!F8 -> 0 | M28: =SUM(M$7:M$21)*Deductions!G8 -> 0 | O28: 207483055.2 | P28: 225053430.9 | Q28: 247178571.7 | R28: 265329752.2
A29: NCONT | B29: MR | C29: 21309506.17 | D29: 23114068.13 | E29: 22642311.91 | F29: 24305015.46 | H29: NCONT | I29: MR | J29: =SUM(J$7:J$21)*Deductions!D9 -> 0 | K29: =SUM(K$7:K$21)*Deductions!E9 -> 0 | L29: =SUM(L$7:L$21)*Deductions!F9 -> 0 | M29: =SUM(M$7:M$21)*Deductions!G9 -> 0 | O29: 21309506.17 | P29: 23114068.13 | Q29: 22642311.91 | R29: 24305015.46
A30: UNINS | B30: MR | C30: 62171456.4 | D30: 67436348.25 | E30: 71888222.45 | F30: 77167224.14 | H30: UNINS | I30: MR | J30: =SUM(J$7:J$21)*Deductions!D10 -> 0 | K30: =SUM(K$7:K$21)*Deductions!E10 -> 0 | L30: =SUM(L$7:L$21)*Deductions!F10 -> 0 | M30: =SUM(M$7:M$21)*Deductions!G10 -> 0 | O30: 62171456.4 | P30: 67436348.25 | Q30: 71888222.45 | R30: 77167224.14
A32: MCARE | B32: F | C32: 0 | D32: 0 | E32: 0 | F32: 0
A33: MCAID | B33: F | C33: 0 | D33: 0 | E33: 0 | F33: 0 | O33: 0 | P33: 0 | Q33: 0 | R33: 0
A34: MCARE | B34: V | C34: 201160013.4 | D34: 223992881.5 | E34: 249818942.4 | F34: 274194484.7 | H34: MCARE | I34: V | J34: =C32+J25-('TEST - UNBASE'!J25*Deductions!D15) -> 0 | K34: =D32+K25-('TEST - UNBASE'!K25*Deductions!E15) -> 0 | L34: =E32+L25-('TEST - UNBASE'!L25*Deductions!F15) -> 0 | M34: =F32+M25-('TEST - UNBASE'!M25*Deductions!G15) -> 0 | O34: 201160013.4 | P34: 223992881.5 | Q34: 249818942.4 | R34: 274194484.7
A35: MCAID | B35: V | C35: 54011681.41 | D35: 61286046.45 | E35: 62322324.31 | F35: 69417686.93 | H35: MCAID | I35: V | J35: =C33+J26-('TEST - UNBASE'!J26*Deductions!D16) -> 0 | K35: =D33+K26-('TEST - UNBASE'!K26*Deductions!E16) -> 0 | L35: =E33+L26-('TEST - UNBASE'!L26*Deductions!F16) -> 0 | M35: =F33+M26-('TEST - UNBASE'!M26*Deductions!G16) -> 0 | O35: 54011681.41 | P35: 61286046.45 | Q35: 62322324.31 | R35: 69417686.93
A36: SELECTH | B36: V | C36: 49328831.62 | D36: 53506166.03 | E36: 55977067.48 | F36: 60087657.84 | H36: SELECTH | I36: V | J36: =J27-(J27*Deductions!D17) -> 0 | K36: =K27-(K27*Deductions!E17) -> 0 | L36: =L27-(L27*Deductions!F17) -> 0 | M36: =M27-(M27*Deductions!G17) -> 0 | O36: 49328831.62 | P36: 53506166.03 | Q36: 55977067.48 | R36: 60087657.84
A37: CONT | B37: V | C37: 54300543.33 | D37: 58898899.31 | E37: 64689286.22 | F37: 69439645.03 | H37: CONT | I37: V | J37: =J28-(J28*Deductions!D18) -> 0 | K37: =K28-(K28*Deductions!E18) -> 0 | L37: =L28-(L28*Deductions!F18) -> 0 | M37: =M28-(M28*Deductions!G18) -> 0 | O37: 54300543.33 | P37: 58898899.31 | Q37: 64689286.22 | R37: 69439645.03
A38: NCONT | B38: V | C38: 3614373.958 | D38: 3920451.523 | E38: 3840435.432 | F38: 4122451.935 | H38: NCONT | I38: V | J38: =J29-(J29*Deductions!D19) -> 0 | K38: =K29-(K29*Deductions!E19) -> 0 | L38: =L29-(L29*Deductions!F19) -> 0 | M38: =M29-(M29*Deductions!G19) -> 0 | O38: 3614373.958 | P38: 3920451.523 | Q38: 3840435.432 | R38: 4122451.935
A39: UNINS | B39: V | C39: 0 | D39: 0 | E39: 0 | F39: 0 | H39: UNINS | I39: V | J39: =J30-(J30*Deductions!D20) -> 0 | K39: =K30-(K30*Deductions!E20) -> 0 | L39: =L30-(L30*Deductions!F20) -> 0 | M39: =M30-(M30*Deductions!G20) -> 0 | O39: 0 | P39: 0 | Q39: 0 | R39: 0
A41: CHAR | B41: V | C41: 43236524.3 | D41: 46897941.25 | E41: 49993953.13 | F41: 53665182.63 | H41: CHAR | I41: V | J41: =Expenses!D8+(Expenses!D5*SUM(J$7:J$22)) -> 0 | K41: =Expenses!E8+(Expenses!E5*SUM(K$7:K$22)) -> 0 | L41: =Expenses!F8+(Expenses!F5*SUM(L$7:L$22)) -> 0 | M41: =Expenses!G8+(Expenses!G5*SUM(M$7:M$22)) -> 0 | O41: 43236524.3 | P41: 46897941.25 | Q41: 49993953.13 | R41: 53665182.63
A42: BDEBT | B42: V | C42: 33441229.37 | D42: 36273147.2 | E42: 38667753.26 | F42: 41507260.6 | H42: BDEBT | I42: V | J42: =Expenses!D9+(Expenses!D6*SUM(J$7:J$22)) -> 0 | K42: =Expenses!E9+(Expenses!E6*SUM(K$7:K$22)) -> 0 | L42: =Expenses!F9+(Expenses!F6*SUM(L$7:L$22)) -> 0 | M42: =Expenses!G9+(Expenses!G6*SUM(M$7:M$22)) -> 0 | O42: 33441229.37 | P42: 36273147.2 | Q42: 38667753.26 | R42: 41507260.6
A43: ODED | B43: V | C43: 21371305.51 | D43: 23181100.86 | E43: 24711423.12 | F43: 26526068.69 | H43: ODED | I43: V | J43: =Expenses!D10+(Expenses!D7*SUM(J$7:J$22)) -> 0 | K43: =Expenses!E10+(Expenses!E7*SUM(K$7:K$22)) -> 0 | L43: =Expenses!F10+(Expenses!F7*SUM(L$7:L$22)) -> 0 | M43: =Expenses!G10+(Expenses!G7*SUM(M$7:M$22)) -> 0 | O43: 21371305.51 | P43: 23181100.86 | Q43: 24711423.12 | R43: 26526068.69
A45: TSAL | B45: V | C45: 111313958.2 | D45: 114735955.6 | E45: 117090601 | F45: 118887010.8 | H45: TSAL | I45: V | J45: =Expenses!D13+(Expenses!D12*SUM('TEST - UNBASE'!J$7:J$23)) -> 0 | K45: =Expenses!E13+(Expenses!E12*SUM('TEST - UNBASE'!K$7:K$23)) -> 0 | L45: =Expenses!F13+(Expenses!F12*SUM('TEST - UNBASE'!L$7:L$23)) -> 0 | M45: =Expenses!G13+(Expenses!G12*SUM('TEST - UNBASE'!M$7:M$23)) -> 0 | O45: 111313958.2 | P45: 114735955.6 | Q45: 117090601 | R45: 118887010.8
A46: PHY | B46: V | C46: 8274356.01 | D46: 8321742.114 | E46: 8333560.183 | F46: 8360099.442 | H46: PHY | I46: V | J46: =Expenses!D16+(Expenses!D15*SUM('TEST - UNBASE'!J$7:J$23)) -> 0 | K46: =Expenses!E16+(Expenses!E15*SUM('TEST - UNBASE'!K$7:K$23)) -> 0 | L46: =Expenses!F16+(Expenses!F15*SUM('TEST - UNBASE'!L$7:L$23)) -> 0 | M46: =Expenses!G16+(Expenses!G15*SUM('TEST - UNBASE'!M$7:M$23)) -> 0 | O46: 8274356.01 | P46: 8321742.114 | Q46: 8333560.183 | R46: 8360099.442
A47: OBEN | B47: V | C47: 29065453.19 | D47: 29170942.28 | E47: 29197251.2 | F47: 29256331.86 | H47: OBEN | I47: V | J47: =Expenses!D19+(Expenses!D18*SUM('TEST - UNBASE'!J$7:J$23)) -> 0 | K47: =Expenses!E19+(Expenses!E18*SUM('TEST - UNBASE'!K$7:K$23)) -> 0 | L47: =Expenses!F19+(Expenses!F18*SUM('TEST - UNBASE'!L$7:L$23)) -> 0 | M47: =Expenses!G19+(Expenses!G18*SUM('TEST - UNBASE'!M$7:M$23)) -> 0 | O47: 29065453.19 | P47: 29170942.28 | Q47: 29197251.2 | R47: 29256331.86
A48: TFEE | B48: V | C48: 15159726.48 | D48: 16395351.52 | E48: 15454116.29 | F48: 18586081.43 | H48: TFEE | I48: V | J48: =Expenses!D22+(Expenses!D21*SUM('TEST - UNBASE'!J$7:J$23)) -> 0 | K48: =Expenses!E22+(Expenses!E21*SUM('TEST - UNBASE'!K$7:K$23)) -> 0 | L48: =Expenses!F22+(Expenses!F21*SUM('TEST - UNBASE'!L$7:L$23)) -> 0 | M48: =Expenses!G22+(Expenses!G21*SUM('TEST - UNBASE'!M$7:M$23)) -> 0 | O48: 15159726.48 | P48: 16395351.52 | Q48: 15454116.29 | R48: 18586081.43
A49: MSUP | B49: V | C49: 61319856.11 | D49: 62711804.96 | E49: 63058956.26 | F49: 63838536.94 | H49: MSUP | I49: V | J49: =Expenses!D25+(Expenses!D24*SUM('TEST - UNBASE'!J$7:J$23)) -> 0 | K49: =Expenses!E25+(Expenses!E24*SUM('TEST - UNBASE'!K$7:K$23)) -> 0 | L49: =Expenses!F25+(Expenses!F24*SUM('TEST - UNBASE'!L$7:L$23)) -> 0 | M49: =Expenses!G25+(Expenses!G24*SUM('TEST - UNBASE'!M$7:M$23)) -> 0 | O49: 61319856.11 | P49: 62711804.96 | Q49: 63058956.26 | R49: 63838536.94
A50: NMSUP | B50: V | C50: 7018991.973 | D50: 7072446.02 | E50: 7085777.43 | F50: 7115715.127 | H50: NMSUP | I50: V | J50: =Expenses!D28+(Expenses!D27*SUM('TEST - UNBASE'!J$7:J$23)) -> 0 | K50: =Expenses!E28+(Expenses!E27*SUM('TEST - UNBASE'!K$7:K$23)) -> 0 | L50: =Expenses!F28+(Expenses!F27*SUM('TEST - UNBASE'!L$7:L$23)) -> 0 | M50: =Expenses!G28+(Expenses!G27*SUM('TEST - UNBASE'!M$7:M$23)) -> 0 | O50: 7018991.973 | P50: 7072446.02 | Q50: 7085777.43 | R50: 7115715.127
A51: TOPS | B51: V | C51: 10245611.42 | D51: 10251307.65 | E51: 10252728.29 | F51: 10255918.55 | H51: TOPS | I51: V | J51: =Expenses!D31+(Expenses!D30*SUM('TEST - UNBASE'!J$7:J$23)) -> 0 | K51: =Expenses!E31+(Expenses!E30*SUM('TEST - UNBASE'!K$7:K$23)) -> 0 | L51: =Expenses!F31+(Expenses!F30*SUM('TEST - UNBASE'!L$7:L$23)) -> 0 | M51: =Expenses!G31+(Expenses!G30*SUM('TEST - UNBASE'!M$7:M$23)) -> 0 | O51: 10245611.42 | P51: 10251307.65 | Q51: 10252728.29 | R51: 10255918.55
A52: OEXP | B52: V | C52: 2476961.77 | D52: 2479904.091 | E52: 2480637.904 | F52: 2482285.793 | H52: OEXP | I52: V | J52: =Expenses!D34+(Expenses!D33*SUM('TEST - UNBASE'!J$7:J$23)) -> 0 | K52: =Expenses!E34+(Expenses!E33*SUM('TEST - UNBASE'!K$7:K$23)) -> 0 | L52: =Expenses!F34+(Expenses!F33*SUM('TEST - UNBASE'!L$7:L$23)) -> 0 | M52: =Expenses!G34+(Expenses!G33*SUM('TEST - UNBASE'!M$7:M$23)) -> 0 | O52: 2476961.77 | P52: 2479904.091 | Q52: 2480637.904 | R52: 2482285.793
A53: MEXP | B53: V | C53: 0 | D53: 0 | E53: 0 | F53: 0 | H53: MEXP | I53: V | J53: =Expenses!D37+(Expenses!D36*SUM('TEST - UNBASE'!J$7:J$23)) -> 0 | K53: =Expenses!E37+(Expenses!E36*SUM('TEST - UNBASE'!K$7:K$23)) -> 0 | L53: =Expenses!F37+(Expenses!F36*SUM('TEST - UNBASE'!L$7:L$23)) -> 0 | M53: =Expenses!G37+(Expenses!G36*SUM('TEST - UNBASE'!M$7:M$23)) -> 0 | O53: 0 | P53: 0 | Q53: 0 | R53: 0
A54: TREIM | B54: V | C54: -1029482.945 | D54: -1029482.945 | E54: -1029482.945 | F54: -1029482.945 | H54: TREIM | I54: V | J54: =Expenses!D40+(Expenses!D39*SUM('TEST - UNBASE'!J$7:J$23)) -> 0 | K54: =Expenses!E40+(Expenses!E39*SUM('TEST - UNBASE'!K$7:K$23)) -> 0 | L54: =Expenses!F40+(Expenses!F39*SUM('TEST - UNBASE'!L$7:L$23)) -> 0 | M54: =Expenses!G40+(Expenses!G39*SUM('TEST - UNBASE'!M$7:M$23)) -> 0 | O54: -1029482.945 | P54: -1029482.945 | Q54: -1029482.945 | R54: -1029482.945
A56: PROE | B56: V | C56: 1900 | D56: 1920 | E56: 1950 | F56: 2000 | H56: PROE | I56: V | J56: =Expenses!D42 -> 0 | K56: =Expenses!E42 -> 0 | L56: =Expenses!F42 -> 0 | M56: =Expenses!G42 -> 0 | O56: 1900 | P56: 1920 | Q56: 1950 | R56: 2000

Sheet TEST - UNBASE (hidden)
C1: 2013 | D1: 2014 | E1: 2015 | F1: 2016
C2: UNBASE | D2: UNBASE | E2: UNBASE | F2: UNBASE
C3: 999 | D3: 999 | E3: 999 | F3: 999
A4: 9001 | B4: V | C4: 70692 | D4: 72465 | E4: 72465 | F4: 73400 | H4: 9001 | I4: V | J4: =SUM(Stats!E5:E9) -> 0 | K4: =SUM(Stats!F5:F9) -> 0 | L4: =SUM(Stats!G5:G9) -> 0 | M4: =SUM(Stats!H5:H9) -> 0 | O4: =C4-J4 -> 70692 | P4: =D4-K4 -> 72465 | Q4: =E4-L4 -> 72465 | R4: =F4-M4 -> 73400
A5: 9011 | B5: V | C5: 18532 | D5: 19416 | E5: 19416 | F5: 19600 | H5: 9011 | I5: V | J5: =SUM(Stats!E11:E15) -> 0 | K5: =SUM(Stats!F11:F15) -> 0 | L5: =SUM(Stats!G11:G15) -> 0 | M5: =SUM(Stats!H11:H15) -> 0 | O5: =C5-J5 -> 18532 | P5: =D5-K5 -> 19416 | Q5: =E5-L5 -> 19416 | R5: =F5-M5 -> 19600
A7: ICU | B7: V | C7: 20093916.95 | D7: 20495169.96 | E7: 20495169.96 | F7: 20844312.18 | H7: ICU | I7: V | J7: =Stats!E5*Revenue!D5 -> 0 | K7: =Stats!F5*Revenue!E5 -> 0 | L7: =Stats!G5*Revenue!F5 -> 0 | M7: =Stats!H5*Revenue!G5 -> 0 | O7: 20093916.95 | P7: 20495169.96 | Q7: 20495169.96 | R7: 20844312.18
A8: NIC | B8: V | C8: 23975147.16 | D8: 24454708.23 | E8: 24454708.23 | F8: 24704661.27 | H8: NIC | I8: V | J8: =Stats!E6*Revenue!D6 -> 0 | K8: =Stats!F6*Revenue!E6 -> 0 | L8: =Stats!G6*Revenue!F6 -> 0 | M8: =Stats!H6*Revenue!G6 -> 0 | O8: 23975147.16 | P8: 24454708.23 | Q8: 24454708.23 | R8: 24704661.27
A9: ONS | B9: V | C9: 106940134.9 | D9: 109077376.5 | E9: 109077376.5 | F9: 110190762.4 | H9: ONS | I9: V | J9: =Stats!E7*Revenue!D7 -> 0 | K9: =Stats!F7*Revenue!E7 -> 0 | L9: =Stats!G7*Revenue!F7 -> 0 | M9: =Stats!H7*Revenue!G7 -> 0 | O9: 106940134.9 | P9: 109077376.5 | Q9: 109077376.5 | R9: 110190762.4
A10: PED | B10: V | C10: 4525938.332 | D10: 4750797.198 | E10: 4750797.198 | F10: 4967812.149 | H10: PED | I10: V | J10: =Stats!E8*Revenue!D8 -> 0 | K10: =Stats!F8*Revenue!E8 -> 0 | L10: =Stats!G8*Revenue!F8 -> 0 | M10: =Stats!H8*Revenue!G8 -> 0 | O10: 4525938.332 | P10: 4750797.198 | Q10: 4750797.198 | R10: 4967812.149
A11: WNO | B11: V | C11: 32733651.17 | D11: 34371608.4 | E11: 34371608.4 | F11: 35053559.47 | H11: WNO | I11: V | J11: =Stats!E9*Revenue!D9 -> 0 | K11: =Stats!F9*Revenue!E9 -> 0 | L11: =Stats!G9*Revenue!F9 -> 0 | M11: =Stats!H9*Revenue!G9 -> 0 | O11: 32733651.17 | P11: 34371608.4 | Q11: 34371608.4 | R11: 35053559.47
A12: AOIP | B12: V | C12: 218331071.8 | D12: 220514382.5 | E12: 222719526.3 | F12: 224946721.6 | H12: AOIP | I12: V | J12: =Revenue!C10*(1+Revenue!D11) -> 0 | K12: =Revenue!D10*(1+Revenue!E11) -> 0 | L12: =Revenue!E10*(1+Revenue!F11) -> 0 | M12: =Revenue!F10*(1+Revenue!G11) -> 0 | O12: 218331071.8 | P12: 220514382.5 | Q12: 222719526.3 | R12: 224946721.6
A14: CVS | B14: V | C14: 30540826.01 | D14: 31151694.35 | E14: 31151694.35 | F14: 31741833.34 | H14: CVS | I14: V | J14: =Stats!E20*Revenue!D13 -> 0 | K14: =Stats!F20*Revenue!E13 -> 0 | L14: =Stats!G20*Revenue!F13 -> 0 | M14: =Stats!H20*Revenue!G13 -> 0 | O14: 30540826.01 | P14: 31151694.35 | Q14: 31151694.35 | R14: 31741833.34
A15: IMG | B15: V | C15: 101603995.3 | D15: 103636229.4 | E15: 103636229.4 | F15: 104414785.3 | H15: IMG | I15: V | J15: =Stats!E21*Revenue!D14 -> 0 | K15: =Stats!F21*Revenue!E14 -> 0 | L15: =Stats!G21*Revenue!F14 -> 0 | M15: =Stats!H21*Revenue!G14 -> 0 | O15: 101603995.3 | P15: 103636229.4 | Q15: 103636229.4 | R15: 104414785.3
A16: SUR | B16: V | C16: 41351049.65 | D16: 43417217.31 | E16: 43417217.31 | F16: 43760655.36 | H16: SUR | I16: V | J16: =Stats!E22*Revenue!D15 -> 0 | K16: =Stats!F22*Revenue!E15 -> 0 | L16: =Stats!G22*Revenue!F15 -> 0 | M16: =Stats!H22*Revenue!G15 -> 0 | O16: 41351049.65 | P16: 43417217.31 | Q16: 43417217.31 | R16: 43760655.36
A17: EDR | B17: V | C17: 78596961.05 | D17: 82526878.86 | E17: 82526878.86 | F17: 83704319.62 | H17: EDR | I17: V | J17: =Stats!E23*Revenue!D16 -> 0 | K17: =Stats!F23*Revenue!E16 -> 0 | L17: =Stats!G23*Revenue!F16 -> 0 | M17: =Stats!H23*Revenue!G16 -> 0 | O17: 78596961.05 | P17: 82526878.86 | Q17: 82526878.86 | R17: 83704319.62
A18: AOOP | B18: V | C18: 111034727.7 | D18: 113255422.3 | E18: 115520530.7 | F18: 117830941.4 | H18: AOOP | I18: V | J18: =Revenue!C17*(1+Revenue!D18) -> 0 | K18: =Revenue!D17*(1+Revenue!E18) -> 0 | L18: =Revenue!E17*(1+Revenue!F18) -> 0 | M18: =Revenue!F17*(1+Revenue!G18) -> 0 | O18: 111034727.7 | P18: 113255422.3 | Q18: 115520530.7 | R18: 117830941.4
O19: 0 | P19: 0 | Q19: 0 | R19: 0
A20: SVREV | B20: V | C20: 0 | D20: 0 | E20: 0 | F20: 0 | H20: SVREV | I20: V | J20: =(SUM(Stats!E5:E9)*Revenue!D20)+Revenue!D21 -> 0 | K20: =(SUM(Stats!F5:F9)*Revenue!E20)+Revenue!E21 -> 0 | L20: =(SUM(Stats!G5:G9)*Revenue!F20)+Revenue!F21 -> 0 | M20: =(SUM(Stats!H5:H9)*Revenue!G20)+Revenue!G21 -> 0 | O20: 0 | P20: 0 | Q20: 0 | R20: 0
A21: LTREV | B21: V | C21: 0 | D21: 0 | E21: 0 | F21: 0 | H21: LTREV | I21: V | J21: =(SUM(Stats!E5:E9)*Revenue!D23)+Revenue!D21 -> 0 | K21: =(SUM(Stats!F5:F9)*Revenue!E23)+Revenue!E21 -> 0 | L21: =(SUM(Stats!G5:G9)*Revenue!F23)+Revenue!F21 -> 0 | M21: =(SUM(Stats!H5:H9)*Revenue!G23)+Revenue!G21 -> 0 | O21: 0 | P21: 0 | Q21: 0 | R21: 0
A23: OOR | B23: V | C23: 14718684.66 | D23: 14987545.64 | E23: 15054599.42 | F23: 15205178.82 | H23: OOR | I23: V | J23: =(SUM(J7:J12,J14:J18,J20:J21)*Revenue!D26)+Revenue!D27 -> 0 | K23: =(SUM(K7:K12,K14:K18,K20:K21)*Revenue!E26)+Revenue!E27 -> 0 | L23: =(SUM(L7:L12,L14:L18,L20:L21)*Revenue!F26)+Revenue!F27 -> 0 | M23: =(SUM(M7:M12,M14:M18,M20:M21)*Revenue!G26)+Revenue!G27 -> 0 | O23: 14718684.66 | P23: 14987545.64 | Q23: 15054599.42 | R23: 15205178.82
A25: MCARE | B25: MR | C25: 278861790.7 | D25: 285355436 | E25: 293085042.8 | F25: 296799334.7 | H25: MCARE | I25: MR | J25: =SUM(J$7:J$21)*Deductions!D5 -> 0 | K25: =SUM(K$7:K$21)*Deductions!E5 -> 0 | L25: =SUM(L$7:L$21)*Deductions!F5 -> 0 | M25: =SUM(M$7:M$21)*Deductions!G5 -> 0 | O25: 278861790.7 | P25: 285355436 | Q25: 293085042.8 | R25: 296799334.7
A26: MCAID | B26: MR | C26: 92448410.97 | D26: 94601187.76 | E26: 87133391.1 | F26: 88237640.03 | H26: MCAID | I26: MR | J26: =SUM(J$7:J$21)*Deductions!D6 -> 0 | K26: =SUM(K$7:K$21)*Deductions!E6 -> 0 | L26: =SUM(L$7:L$21)*Deductions!F6 -> 0 | M26: =SUM(M$7:M$21)*Deductions!G6 -> 0 | O26: 92448410.97 | P26: 94601187.76 | Q26: 87133391.1 | R26: 88237640.03
A27: SELECTH | B27: MR | C27: 123922862 | D27: 126808560.7 | E27: 125155234.5 | F27: 126741337.5 | H27: SELECTH | I27: MR | J27: =SUM(J$7:J$21)*Deductions!D7 -> 0 | K27: =SUM(K$7:K$21)*Deductions!E7 -> 0 | L27: =SUM(L$7:L$21)*Deductions!F7 -> 0 | M27: =SUM(M$7:M$21)*Deductions!G7 -> 0 | O27: 123922862 | P27: 126808560.7 | Q27: 125155234.5 | R27: 126741337.5
A28: CONT | B28: MR | C28: 195738731.3 | D28: 200296752.3 | E28: 207535895.2 | F28: 210166015.3 | H28: CONT | I28: MR | J28: =SUM(J$7:J$21)*Deductions!D8 -> 0 | K28: =SUM(K$7:K$21)*Deductions!E8 -> 0 | L28: =SUM(L$7:L$21)*Deductions!F8 -> 0 | M28: =SUM(M$7:M$21)*Deductions!G8 -> 0 | O28: 195738731.3 | P28: 200296752.3 | Q28: 207535895.2 | R28: 210166015.3
A29: NCONT | B29: MR | C29: 20103307.7 | D29: 20571438.35 | E29: 19010921.69 | F29: 19251848.73 | H29: NCONT | I29: MR | J29: =SUM(J$7:J$21)*Deductions!D9 -> 0 | K29: =SUM(K$7:K$21)*Deductions!E9 -> 0 | L29: =SUM(L$7:L$21)*Deductions!F9 -> 0 | M29: =SUM(M$7:M$21)*Deductions!G9 -> 0 | O29: 20103307.7 | P29: 20571438.35 | Q29: 19010921.69 | R29: 19251848.73
A30: UNINS | B30: MR | C30: 58652317.35 | D30: 60018109.87 | E30: 60358737.79 | F30: 61123669.25 | H30: UNINS | I30: MR | J30: =SUM(J$7:J$21)*Deductions!D10 -> 0 | K30: =SUM(K$7:K$21)*Deductions!E10 -> 0 | L30: =SUM(L$7:L$21)*Deductions!F10 -> 0 | M30: =SUM(M$7:M$21)*Deductions!G10 -> 0 | O30: 58652317.35 | P30: 60018109.87 | Q30: 60358737.79 | R30: 61123669.25
A32: MCARE | B32: V | C32: 184428306 | D32: 188722949.6 | E32: 193835009.9 | F32: 196291497.6 | H32: MCARE | I32: V | J32: ='TEST - UNBASE'!J25-('TEST - UNBASE'!J25*Deductions!D15) -> 0 | K32: ='TEST - UNBASE'!K25-('TEST - UNBASE'!K25*Deductions!E15) -> 0 | L32: ='TEST - UNBASE'!L25-('TEST - UNBASE'!L25*Deductions!F15) -> 0 | M32: ='TEST - UNBASE'!M25-('TEST - UNBASE'!M25*Deductions!G15) -> 0 | O32: 184428306 | P32: 188722949.6 | Q32: 193835009.9 | R32: 196291497.6
A33: MCAID | B33: V | C33: 48464776.75 | D33: 49593339.65 | E33: 45678452.48 | F33: 46257339.42 | H33: MCAID | I33: V | J33: ='TEST - UNBASE'!J26-('TEST - UNBASE'!J26*Deductions!D16) -> 0 | K33: ='TEST - UNBASE'!K26-('TEST - UNBASE'!K26*Deductions!E16) -> 0 | L33: ='TEST - UNBASE'!L26-('TEST - UNBASE'!L26*Deductions!F16) -> 0 | M33: ='TEST - UNBASE'!M26-('TEST - UNBASE'!M26*Deductions!G16) -> 0 | O33: 48464776.75 | P33: 49593339.65 | Q33: 45678452.48 | R33: 46257339.42
A34: SELECTH | B34: V | C34: 46536633.61 | D34: 47620297.28 | E34: 46999425.27 | F34: 47595053.01 | H34: SELECTH | I34: V | J34: ='TEST - UNBASE'!J27-('TEST - UNBASE'!J27*Deductions!D17) -> 0 | K34: ='TEST - UNBASE'!K27-('TEST - UNBASE'!K27*Deductions!E17) -> 0 | L34: ='TEST - UNBASE'!L27-('TEST - UNBASE'!L27*Deductions!F17) -> 0 | M34: ='TEST - UNBASE'!M27-('TEST - UNBASE'!M27*Deductions!G17) -> 0 | O34: 46536633.61 | P34: 47620297.28 | Q34: 46999425.27 | R34: 47595053.01
A35: CONT | B35: V | C35: 51226927.67 | D35: 52419810.7 | E35: 54314372.11 | F35: 55002702.81 | H35: CONT | I35: V | J35: ='TEST - UNBASE'!J28-('TEST - UNBASE'!J28*Deductions!D18) -> 0 | K35: ='TEST - UNBASE'!K28-('TEST - UNBASE'!K28*Deductions!E18) -> 0 | L35: ='TEST - UNBASE'!L28-('TEST - UNBASE'!L28*Deductions!F18) -> 0 | M35: ='TEST - UNBASE'!M28-('TEST - UNBASE'!M28*Deductions!G18) -> 0 | O35: 51226927.67 | P35: 52419810.7 | Q35: 54314372.11 | R35: 55002702.81
A36: NCONT | B36: V | C36: 3409786.753 | D36: 3489187.899 | E36: 3224503.644 | F36: 3265368.055 | H36: NCONT | I36: V | J36: ='TEST - UNBASE'!J29-('TEST - UNBASE'!J29*Deductions!D19) -> 0 | K36: ='TEST - UNBASE'!K29-('TEST - UNBASE'!K29*Deductions!E19) -> 0 | L36: ='TEST - UNBASE'!L29-('TEST - UNBASE'!L29*Deductions!F19) -> 0 | M36: ='TEST - UNBASE'!M29-('TEST - UNBASE'!M29*Deductions!G19) -> 0 | O36: 3409786.753 | P36: 3489187.899 | Q36: 3224503.644 | R36: 3265368.055
A37: UNINS | B37: V | C37: 0 | D37: 0 | E37: 0 | F37: 0 | H37: UNINS | I37: V | J37: ='TEST - UNBASE'!J30-('TEST - UNBASE'!J30*Deductions!D20) -> 0 | K37: ='TEST - UNBASE'!K30-('TEST - UNBASE'!K30*Deductions!E20) -> 0 | L37: ='TEST - UNBASE'!L30-('TEST - UNBASE'!L30*Deductions!F20) -> 0 | M37: ='TEST - UNBASE'!M30-('TEST - UNBASE'!M30*Deductions!G20) -> 0 | O37: 0 | P37: 0 | Q37: 0 | R37: 0
A39: CHAR | B39: V | C39: 40789173.87 | D39: 41739000.76 | E39: 41975887.08 | F39: 42507851.1 | H39: CHAR | I39: V | J39: =Expenses!D8+(Expenses!D5*SUM('TEST - UNBASE'!J$7:J$22)) -> 0 | K39: =Expenses!E8+(Expenses!E5*SUM('TEST - UNBASE'!K$7:K$22)) -> 0 | L39: =Expenses!F8+(Expenses!F5*SUM('TEST - UNBASE'!L$7:L$22)) -> 0 | M39: =Expenses!G8+(Expenses!G5*SUM('TEST - UNBASE'!M$7:M$22)) -> 0 | O39: 40789173.87 | P39: 41739000.76 | Q39: 41975887.08 | R39: 42507851.1
A40: BDEBT | B40: V | C40: 31548329.59 | D40: 32282971.88 | E40: 32466191.27 | F40: 32877638.1 | H40: BDEBT | I40: V | J40: =Expenses!D9+(Expenses!D6*SUM('TEST - UNBASE'!J$7:J$22)) -> 0 | K40: =Expenses!E9+(Expenses!E6*SUM('TEST - UNBASE'!K$7:K$22)) -> 0 | L40: =Expenses!F9+(Expenses!F6*SUM('TEST - UNBASE'!L$7:L$22)) -> 0 | M40: =Expenses!G9+(Expenses!G6*SUM('TEST - UNBASE'!M$7:M$22)) -> 0 | O40: 31548329.59 | P40: 32282971.88 | Q40: 32466191.27 | R40: 32877638.1
A41: ODED | B41: V | C41: 20161608.97 | D41: 20631097.24 | E41: 20748187.36 | F41: 21011130.92 | H41: ODED | I41: V | J41: =Expenses!D10+(Expenses!D7*SUM('TEST - UNBASE'!J$7:J$22)) -> 0 | K41: =Expenses!E10+(Expenses!E7*SUM('TEST - UNBASE'!K$7:K$22)) -> 0 | L41: =Expenses!F10+(Expenses!F7*SUM('TEST - UNBASE'!L$7:L$22)) -> 0 | M41: =Expenses!G10+(Expenses!G7*SUM('TEST - UNBASE'!M$7:M$22)) -> 0 | O41: 20161608.97 | P41: 20631097.24 | Q41: 20748187.36 | R41: 21011130.92
A43: TSAL | B43: V | C43: 111313958.2 | D43: 114735955.6 | E43: 117090601 | F43: 118887010.8 | H43: TSAL | I43: V | J43: =Expenses!D13+(Expenses!D12*SUM('TEST - UNBASE'!J$7:J$23)) -> 0 | K43: =Expenses!E13+(Expenses!E12*SUM('TEST - UNBASE'!K$7:K$23)) -> 0 | L43: =Expenses!F13+(Expenses!F12*SUM('TEST - UNBASE'!L$7:L$23)) -> 0 | M43: =Expenses!G13+(Expenses!G12*SUM('TEST - UNBASE'!M$7:M$23)) -> 0 | O43: 111313958.2 | P43: 114735955.6 | Q43: 117090601 | R43: 118887010.8
A44: PHY | B44: V | C44: 8274356.01 | D44: 8321742.114 | E44: 8333560.183 | F44: 8360099.442 | H44: PHY | I44: V | J44: =Expenses!D16+(Expenses!D15*SUM('TEST - UNBASE'!J$7:J$23)) -> 0 | K44: =Expenses!E16+(Expenses!E15*SUM('TEST - UNBASE'!K$7:K$23)) -> 0 | L44: =Expenses!F16+(Expenses!F15*SUM('TEST - UNBASE'!L$7:L$23)) -> 0 | M44: =Expenses!G16+(Expenses!G15*SUM('TEST - UNBASE'!M$7:M$23)) -> 0 | O44: 8274356.01 | P44: 8321742.114 | Q44: 8333560.183 | R44: 8360099.442
A45: OBEN | B45: V | C45: 29065453.19 | D45: 29170942.28 | E45: 29197251.2 | F45: 29256331.86 | H45: OBEN | I45: V | J45: =Expenses!D19+(Expenses!D18*SUM('TEST - UNBASE'!J$7:J$23)) -> 0 | K45: =Expenses!E19+(Expenses!E18*SUM('TEST - UNBASE'!K$7:K$23)) -> 0 | L45: =Expenses!F19+(Expenses!F18*SUM('TEST - UNBASE'!L$7:L$23)) -> 0 | M45: =Expenses!G19+(Expenses!G18*SUM('TEST - UNBASE'!M$7:M$23)) -> 0 | O45: 29065453.19 | P45: 29170942.28 | Q45: 29197251.2 | R45: 29256331.86
A46: TFEE | B46: V | C46: 15159726.48 | D46: 16395351.52 | E46: 15454116.29 | F46: 18586081.43 | H46: TFEE | I46: V | J46: =Expenses!D22+(Expenses!D21*SUM('TEST - UNBASE'!J$7:J$23)) -> 0 | K46: =Expenses!E22+(Expenses!E21*SUM('TEST - UNBASE'!K$7:K$23)) -> 0 | L46: =Expenses!F22+(Expenses!F21*SUM('TEST - UNBASE'!L$7:L$23)) -> 0 | M46: =Expenses!G22+(Expenses!G21*SUM('TEST - UNBASE'!M$7:M$23)) -> 0 | O46: 15159726.48 | P46: 16395351.52 | Q46: 15454116.29 | R46: 18586081.43
A47: MSUP | B47: V | C47: 61319856.11 | D47: 62711804.96 | E47: 63058956.26 | F47: 63838536.94 | H47: MSUP | I47: V | J47: =Expenses!D25+(Expenses!D24*SUM('TEST - UNBASE'!J$7:J$23)) -> 0 | K47: =Expenses!E25+(Expenses!E24*SUM('TEST - UNBASE'!K$7:K$23)) -> 0 | L47: =Expenses!F25+(Expenses!F24*SUM('TEST - UNBASE'!L$7:L$23)) -> 0 | M47: =Expenses!G25+(Expenses!G24*SUM('TEST - UNBASE'!M$7:M$23)) -> 0 | O47: 61319856.11 | P47: 62711804.96 | Q47: 63058956.26 | R47: 63838536.94
A48: NMSUP | B48: V | C48: 7018991.973 | D48: 7072446.02 | E48: 7085777.43 | F48: 7115715.127 | H48: NMSUP | I48: V | J48: =Expenses!D28+(Expenses!D27*SUM('TEST - UNBASE'!J$7:J$23)) -> 0 | K48: =Expenses!E28+(Expenses!E27*SUM('TEST - UNBASE'!K$7:K$23)) -> 0 | L48: =Expenses!F28+(Expenses!F27*SUM('TEST - UNBASE'!L$7:L$23)) -> 0 | M48: =Expenses!G28+(Expenses!G27*SUM('TEST - UNBASE'!M$7:M$23)) -> 0 | O48: 7018991.973 | P48: 7072446.02 | Q48: 7085777.43 | R48: 7115715.127
A49: TOPS | B49: V | C49: 10245611.42 | D49: 10251307.65 | E49: 10252728.29 | F49: 10255918.55 | H49: TOPS | I49: V | J49: =Expenses!D31+(Expenses!D30*SUM('TEST - UNBASE'!J$7:J$23)) -> 0 | K49: =Expenses!E31+(Expenses!E30*SUM('TEST - UNBASE'!K$7:K$23)) -> 0 | L49: =Expenses!F31+(Expenses!F30*SUM('TEST - UNBASE'!L$7:L$23)) -> 0 | M49: =Expenses!G31+(Expenses!G30*SUM('TEST - UNBASE'!M$7:M$23)) -> 0 | O49: 10245611.42 | P49: 10251307.65 | Q49: 10252728.29 | R49: 10255918.55
A50: OEXP | B50: V | C50: 2476961.77 | D50: 2479904.091 | E50: 2480637.904 | F50: 2482285.793 | H50: OEXP | I50: V | J50: =Expenses!D34+(Expenses!D33*SUM('TEST - UNBASE'!J$7:J$23)) -> 0 | K50: =Expenses!E34+(Expenses!E33*SUM('TEST - UNBASE'!K$7:K$23)) -> 0 | L50: =Expenses!F34+(Expenses!F33*SUM('TEST - UNBASE'!L$7:L$23)) -> 0 | M50: =Expenses!G34+(Expenses!G33*SUM('TEST - UNBASE'!M$7:M$23)) -> 0 | O50: 2476961.77 | P50: 2479904.091 | Q50: 2480637.904 | R50: 2482285.793
A51: MEXP | B51: V | C51: 0 | D51: 0 | E51: 0 | F51: 0 | H51: MEXP | I51: V | J51: =Expenses!D37+(Expenses!D36*SUM('TEST - UNBASE'!J$7:J$23)) -> 0 | K51: =Expenses!E37+(Expenses!E36*SUM('TEST - UNBASE'!K$7:K$23)) -> 0 | L51: =Expenses!F37+(Expenses!F36*SUM('TEST - UNBASE'!L$7:L$23)) -> 0 | M51: =Expenses!G37+(Expenses!G36*SUM('TEST - UNBASE'!M$7:M$23)) -> 0 | O51: 0 | P51: 0 | Q51: 0 | R51: 0
A52: TREIM | B52: V | C52: -1029482.945 | D52: -1029482.945 | E52: -1029482.945 | F52: -1029482.945 | H52: TREIM | I52: V | J52: =Expenses!D40+(Expenses!D39*SUM('TEST - UNBASE'!J$7:J$23)) -> 0 | K52: =Expenses!E40+(Expenses!E39*SUM('TEST - UNBASE'!K$7:K$23)) -> 0 | L52: =Expenses!F40+(Expenses!F39*SUM('TEST - UNBASE'!L$7:L$23)) -> 0 | M52: =Expenses!G40+(Expenses!G39*SUM('TEST - UNBASE'!M$7:M$23)) -> 0 | O52: -1029482.945 | P52: -1029482.945 | Q52: -1029482.945 | R52: -1029482.945
A54: PROE | B54: V | C54: 1900 | D54: 1920 | E54: 1950 | F54: 2000 | H54: PROE | I54: V | J54: =Expenses!D42 -> 0 | K54: =Expenses!E42 -> 0 | L54: =Expenses!F42 -> 0 | M54: =Expenses!G42 -> 0 | O54: 1900 | P54: 1920 | Q54: 1950 | R54: 2000

Sheet Data
C2: 2010 | D2: 2011 | E2: 2012 | F2: 2012
C3: Actual | D3: UNBASE | E3: UNBASE | F3: INBASE
C4: =Facility -> 116 | D4: 116 | E4: =Facility -> 116 | F4: =Facility -> 116
A5: 9001ICU | B5: V | C5: 773 | D5: 837.0023484 | E5: 830.8248316 | F5: 830.8248316
A6: 9001NIC | B6: V | C6: 0 | D6: 0 | E6: 0 | F6: 0
A7: 9001ONS | B7: V | C7: 7148 | D7: 6662.462349 | E7: 6611 | F7: 6611
A8: 9001PED | B8: V | C8: 0 | D8: 0 | E8: 0 | F8: 0
A9: 9001WNO | B9: V | C9: 3705 | D9: 3132.690601 | E9: 3129 | F9: 3129
A10: 9001AOIP | B10: V | C10: 0 | D10: 0 | E10: 0 | F10: 0
A12: 9011ICU | B12: V | C12: 300 | D12: 279.5295283 | E12: 277.8399597 | F12: 277.8399597
A13: 9011NIC | B13: V | C13: 0 | D13: 0 | E13: 0 | F13: 0
A14: 9011ONS | B14: V | C14: 2091 | D14: 1861.022523 | E14: 1846.753279 | F14: 1846.753279
A15: 9011PED | B15: V | C15: 0 | D15: 0 | E15: 0 | F15: 0
A16: 9011WNO | B16: V | C16: 1808 | D16: 1558.389581 | E16: 1556.011181 | F16: 1556.011181
A17: 9011AOIP | B17: V | C17: 0 | D17: 0 | E17: 0 | F17: 0
A19: 9146 | B19: V | C19: 1113 | D19: 1110.013434 | E19: 1099.853063 | F19: 1099.853063
A20: 9209 | B20: V | C20: 1898 | D20: 1734.269564 | E20: 1709 | F20: 1709
A22: 9308CVS | B22: V | C22: 3977 | D22: 3718 | E22: 3718 | F22: 3718
A23: 9308IMG | B23: V | C23: 47303 | D23: 41171 | E23: 41057.22063 | F23: 41057.22063
A24: 9031 | B24: V | C24: 5716 | D24: 5509 | E24: 5565 | F24: 5565
A25: 9309 | B25: V | C25: 22996 | D25: 20797 | E25: 20866 | F25: 20866
A27: ICU | B27: R | C27: 0 | D27: 0 | E27: 0 | F27: 0
A28: NIC | B28: R | C28: 0 | D28: 0 | E28: 0 | F28: 0
A29: ONS | B29: R | C29: 0 | D29: 0 | E29: 0 | F29: 0
A30: PED | B30: R | C30: 0 | D30: 0 | E30: 0 | F30: 0
A31: WNO | B31: R | C31: 0 | D31: 0 | E31: 0 | F31: 0
A32: AOIP | B32: V | C32: 37416261.57 | D32: 0 | E32: 0 | F32: 0
A34: CVS | B34: R | C34: 0 | D34: 0 | E34: 0 | F34: 0
A35: IMG | B35: R | C35: 0 | D35: 0 | E35: 0 | F35: 0
A36: SUR | B36: R | C36: 0 | D36: 0 | E36: 0 | F36: 0
A37: EDR | B37: R | C37: 0 | D37: 0 | E37: 0 | F37: 0
A38: AOOP | B38: V | C38: 27798611.18 | D38: 0 | E38: 0 | F38: 0
A40: SVREV | B40: R | C40: 0 | D40: 0 | E40: 0 | F40: 0
A41: SVREV | B41: F | C41: 0 | D41: 0 | E41: 0 | F41: 0
A43: LTREV | B43: R | C43: 0 | D43: 0 | E43: 0 | F43: 0
A44: LTREV | B44: F | C44: 0 | D44: 0 | E44: 0 | F44: 0
A46: OOR | B46: R | C46: 0 | D46: 0 | E46: 0 | F46: 0
A47: OOR | B47: F | C47: 0 | D47: 0 | E47: 0 | F47: 0
A49: CHAR | B49: R | C49: 0 | D49: 0 | E49: 0 | F49: 0
A50: CHAR | B50: F | C50: 0 | D50: 0 | E50: 0 | F50: 0
A51: BDEBT | B51: R | C51: 0 | D51: 0 | E51: 0 | F51: 0
A52: BDEBT | B52: F | C52: 0 | D52: 0 | E52: 0 | F52: 0
A53: ODED | B53: R | C53: 0 | D53: 0 | E53: 0 | F53: 0
A54: ODED | B54: F | C54: 0 | D54: 0 | E54: 0 | F54: 0
A56: TSAL | B56: R | C56: 0 | D56: 0 | E56: 0 | F56: 0
A57: TSAL | B57: F | C57: 0 | D57: 0 | E57: 0 | F57: 0
A59: PHY | B59: R | C59: 0 | D59: 0 | E59: 0 | F59: 0
A60: PHY | B60: F | C60: 0 | D60: 0 | E60: 0 | F60: 0
A62: OBEN | B62: R | C62: 0 | D62: 0 | E62: 0 | F62: 0
A63: OBEN | B63: F | C63: 0 | D63: 0 | E63: 0 | F63: 0
A65: TFEE | B65: R | C65: 0 | D65: 0 | E65: 0 | F65: 0
A66: TFEE | B66: F | C66: 0 | D66: 0 | E66: 0 | F66: 0
A68: MSUP | B68: R | C68: 0 | D68: 0 | E68: 0 | F68: 0
A69: MSUP | B69: F | C69: 0 | D69: 0 | E69: 0 | F69: 0
A71: NMSUP | B71: R | C71: 0 | D71: 0 | E71: 0 | F71: 0
A72: NMSUP | B72: F | C72: 0 | D72: 0 | E72: 0 | F72: 0
A74: TOPS | B74: R | C74: 0 | D74: 0 | E74: 0 | F74: 0
A75: TOPS | B75: F | C75: 0 | D75: 0 | E75: 0 | F75: 0
A77: OEXP | B77: R | C77: 0 | D77: 0 | E77: 0 | F77: 0
A78: OEXP | B78: F | C78: 0 | D78: 0 | E78: 0 | F78: 0
A80: MEXP | B80: R | C80: 0 | D80: 0 | E80: 0 | F80: 0
A81: MEXP | B81: F | C81: 0 | D81: 0 | E81: 0 | F81: 0
A83: TREIM | B83: R | C83: 0 | D83: 0 | E83: 0 | F83: 0
A84: TREIM | B84: F | C84: 0 | D84: 0 | E84: 0 | F84: 0
A86: PROE | B86: V | C86: 423.71341 | D86: 0 | E86: 0 | F86: 0
A88: 4472 | B88: V | C88: 0 | D88: 0 | E88: 0 | F88: 0
A89: 4471 | B89: V | C89: 2353483.04 | D89: 0 | E89: 0 | F89: 0
A90: 4474 | B90: V | C90: 943684.37 | D90: 0 | E90: 0 | F90: 0
A91: 4475 | B91: V | C91: 3958709.4 | D91: 0 | E91: 0 | F91: 0
A93: MCARE | B93: P | C93: 0 | D93: 0 | E93: 0 | F93: 0
A94: MCAID | B94: P | C94: 0 | D94: 0 | E94: 0 | F94: 0
A95: SELECTH | B95: P | C95: 0 | D95: 0 | E95: 0 | F95: 0
A96: CONT | B96: P | C96: 0 | D96: 0 | E96: 0 | F96: 0
A97: NCONT | B97: P | C97: 0 | D97: 0 | E97: 0 | F97: 0
A98: UNINS | B98: P | C98: 0 | D98: 0 | E98: 0 | F98: 0
A100: MCARE | B100: R | C100: 0 | D100: 0 | E100: 0 | F100: 0
A101: MCAID | B101: R | C101: 0 | D101: 0 | E101: 0 | F101: 0
A102: SELECTH | B102: R | C102: 0 | D102: 0 | E102: 0 | F102: 0
A103: CONT | B103: R | C103: 0 | D103: 0 | E103: 0 | F103: 0
A104: NCONT | B104: R | C104: 0 | D104: 0 | E104: 0 | F104: 0
A105: UNINS | B105: R | C105: 0 | D105: 0 | E105: 0 | F105: 0
A107: NOI | B107: V | C107: 26953456.6 | D107: 0 | E107: 0 | F107: 0

Sheet Stats
C2: =Facility -> 116
C3: UNBASE
C4: 2011 | D4: 2012 | E4: 2013 | F4: 2014 | G4: 2015 | H4: 2016
A5: 9001ICU | B5: V | C5: =Data!D5 -> 837.0023484 | D5: =Data!E5 -> 830.8248316 | E5: 0 | F5: 0 | G5: 0 | H5: 0
A6: 9001NIC | B6: V | C6: =Data!D6 -> 0 | D6: =Data!E6 -> 0 | E6: 0 | F6: 0 | G6: 0 | H6: 0
A7: 9001ONS | B7: V | C7: =Data!D7 -> 6662.462349 | D7: =Data!E7 -> 6611 | E7: 0 | F7: 0 | G7: 0 | H7: 0
A8: 9001PED | B8: V | C8: =Data!D8 -> 0 | D8: =Data!E8 -> 0 | E8: 0 | F8: 0 | G8: 0 | H8: 0
A9: 9001WNO | B9: V | C9: =Data!D9 -> 3132.690601 | D9: =Data!E9 -> 3129 | E9: 0 | F9: 0 | G9: 0 | H9: 0
A11: 9011ICU | B11: V | C11: =Data!D12 -> 279.5295283 | D11: =Data!E12 -> 277.8399597 | E11: 0 | F11: 0 | G11: 0 | H11: 0
A12: 9011NIC | B12: V | C12: =Data!D13 -> 0 | D12: =Data!E13 -> 0 | E12: 0 | F12: 0 | G12: 0 | H12: 0
A13: 9011ONS | B13: V | C13: =Data!D14 -> 1861.022523 | D13: =Data!E14 -> 1846.753279 | E13: 0 | F13: 0 | G13: 0 | H13: 0
A14: 9011PED | B14: V | C14: =Data!D15 -> 0 | D14: =Data!E15 -> 0 | E14: 0 | F14: 0 | G14: 0 | H14: 0
A15: 9011WNO | B15: V | C15: =Data!D16 -> 1558.389581 | D15: =Data!E16 -> 1556.011181 | E15: 0 | F15: 0 | G15: 0 | H15: 0
A17: 9146 | B17: V | C17: =Data!D19 -> 1110.013434 | D17: =Data!E19 -> 1099.853063 | E17: 0 | F17: 0 | G17: 0 | H17: 0
A18: 9209 | B18: V | C18: =Data!D20 -> 1734.269564 | D18: =Data!E20 -> 1709 | E18: 0 | F18: 0 | G18: 0 | H18: 0
A20: 9308CVS | B20: V | C20: =Data!D22 -> 3718 | D20: =Data!E22 -> 3718 | E20: 0 | F20: 0 | G20: 0 | H20: 0
A21: 9308IMG | B21: V | C21: =Data!D23 -> 41171 | D21: =Data!E23 -> 41057.22063 | E21: 0 | F21: 0 | G21: 0 | H21: 0
A22: 9031 | B22: V | C22: =Data!D24 -> 5509 | D22: =Data!E24 -> 5565 | E22: 0 | F22: 0 | G22: 0 | H22: 0
A23: 9309 | B23: V | C23: =Data!D25 -> 20797 | D23: =Data!E25 -> 20866 | E23: 0 | F23: 0 | G23: 0 | H23: 0

Sheet Revenue
C2: =Facility -> 116
C3: UNBASE
C4: =year2 -> 2012 | D4: =year3 -> 2013 | E4: =year4 -> 2014 | F4: =year5 -> 2015 | G4: =year6 -> 2016
A5: ICU | B5: R | C5: =Data!E27 -> 0 | D5: 0 | E5: 0 | F5: 0 | G5: 0
A6: NIC | B6: R | C6: =Data!E28 -> 0 | D6: 0 | E6: 0 | F6: 0 | G6: 0
A7: ONS | B7: R | C7: =Data!E29 -> 0 | D7: 0 | E7: 0 | F7: 0 | G7: 0
A8: PED | B8: R | C8: =Data!E30 -> 0 | D8: 0 | E8: 0 | F8: 0 | G8: 0
A9: WNO | B9: R | C9: =Data!E31 -> 0 | D9: 0 | E9: 0 | F9: 0 | G9: 0
A10: AOIP | B10: V | C10: =Data!E32 -> 0 | D10: =C10*(1+D11) -> 0 | E10: =D10*(1+E11) -> 0 | F10: =E10*(1+F11) -> 0 | G10: =F10*(1+G11) -> 0
A11: AOIP | B11: R | D11: 0 | E11: 0 | F11: 0 | G11: 0
A13: CVS | B13: R | C13: =Data!E34 -> 0 | D13: 0 | E13: 0 | F13: 0 | G13: 0
A14: IMG | B14: R | C14: =Data!E35 -> 0 | D14: 0 | E14: 0 | F14: 0 | G14: 0
A15: SUR | B15: R | C15: =Data!E36 -> 0 | D15: 0 | E15: 0 | F15: 0 | G15: 0
A16: EDR | B16: R | C16: =Data!E37 -> 0 | D16: 0 | E16: 0 | F16: 0 | G16: 0
A17: AOOP | B17: V | C17: =Data!E38 -> 0 | D17: =C17*(1+D18) -> 0 | E17: =D17*(1+E18) -> 0 | F17: =E17*(1+F18) -> 0 | G17: =F17*(1+G18) -> 0
A18: AOOP | B18: R | D18: 0 | E18: 0 | F18: 0 | G18: 0
A20: SVREV | B20: R | C20: =Data!E40 -> 0 | D20: 0 | E20: 0 | F20: 0 | G20: 0
A21: SVREV | B21: F | C21: =Data!E41 -> 0 | D21: 0 | E21: 0 | F21: 0 | G21: 0
A23: LTREV | B23: R | C23: =Data!E43 -> 0 | D23: 0 | E23: 0 | F23: 0 | G23: 0
A24: LTREV | B24: F | C24: =Data!E44 -> 0 | D24: 0 | E24: 0 | F24: 0 | G24: 0
A26: OOR | B26: R | C26: =Data!E46 -> 0 | D26: 0.015 | E26: 0.015 | F26: 0.015 | G26: 0.015
A27: OOR | B27: F | C27: =Data!E47 -> 0 | D27: 0 | E27: 0 | F27: 0 | G27: 0

Sheet Expenses
C2: =Facility -> 116
C3: UNBASE
C4: =year2 -> 2012 | D4: =year3 -> 2013 | E4: =year4 -> 2014 | F4: =year5 -> 2015 | G4: =year6 -> 2016
A5: CHAR | B5: R | C5: =Data!E49 -> 0 | D5: 0 | E5: 0 | F5: 0 | G5: 0
A6: BDEBT | B6: R | C6: =Data!E51 -> 0 | D6: 0 | E6: 0 | F6: 0 | G6: 0
A7: ODED | B7: R | C7: =Data!E53 -> 0 | D7: 0 | E7: 0 | F7: 0 | G7: 0
A8: CHAR | B8: F | C8: =Data!E50 -> 0 | D8: 0 | E8: 0 | F8: 0 | G8: 0
A9: BDEBT | B9: F | C9: =Data!E52 -> 0 | D9: 0 | E9: 0 | F9: 0 | G9: 0
A10: ODED | B10: F | C10: =Data!E54 -> 0 | D10: 0 | E10: 0 | F10: 0 | G10: 0
A12: TSAL | B12: R | C12: =Data!E56 -> 0 | D12: 0 | E12: 0 | F12: 0 | G12: 0
A13: TSAL | B13: F | C13: =Data!E57 -> 0 | D13: 0 | E13: 0 | F13: 0 | G13: 0
A15: PHY | B15: R | C15: =Data!E59 -> 0 | D15: 0 | E15: 0 | F15: 0 | G15: 0
A16: PHY | B16: F | C16: =Data!E60 -> 0 | D16: 0 | E16: 0 | F16: 0 | G16: 0
A18: OBEN | B18: R | C18: =Data!E62 -> 0 | D18: 0 | E18: 0 | F18: 0 | G18: 0
A19: OBEN | B19: F | C19: =Data!E63 -> 0 | D19: 0 | E19: 0 | F19: 0 | G19: 0
A21: TFEE | B21: R | C21: =Data!E65 -> 0 | D21: 0 | E21: 0 | F21: 0 | G21: 0
A22: TFEE | B22: F | C22: =Data!E66 -> 0 | D22: 0 | E22: 0 | F22: 0 | G22: 0
A24: MSUP | B24: R | C24: =Data!E68 -> 0 | D24: 0 | E24: 0 | F24: 0 | G24: 0
A25: MSUP | B25: F | C25: =Data!E69 -> 0 | D25: 0 | E25: 0 | F25: 0 | G25: 0
A27: NMSUP | B27: R | C27: =Data!E71 -> 0 | D27: 0 | E27: 0 | F27: 0 | G27: 0
A28: NMSUP | B28: F | C28: =Data!E72 -> 0 | D28: 0 | E28: 0 | F28: 0 | G28: 0
A30: TOPS | B30: R | C30: =Data!E74 -> 0 | D30: 0 | E30: 0 | F30: 0 | G30: 0
A31: TOPS | B31: F | C31: =Data!E75 -> 0 | D31: 0 | E31: 0 | F31: 0 | G31: 0
A33: OEXP | B33: R | C33: =Data!E77 -> 0 | D33: 0 | E33: 0 | F33: 0 | G33: 0
A34: OEXP | B34: F | C34: =Data!E78 -> 0 | D34: 0 | E34: 0 | F34: 0 | G34: 0
A36: MEXP | B36: R | C36: =Data!E80 -> 0 | D36: 0 | E36: 0 | F36: 0 | G36: 0
A37: MEXP | B37: F | C37: =Data!E81 -> 0 | D37: 0 | E37: 0 | F37: 0 | G37: 0
A39: TREIM | B39: R | C39: =Data!E83 -> 0 | D39: 0 | E39: 0 | F39: 0 | G39: 0
A40: TREIM | B40: F | C40: =Data!E84 -> 0 | D40: 0 | E40: 0 | F40: 0 | G40: 0
A42: PROE | B42: V | C42: =Data!E86 -> 0 | D42: 0 | E42: 0 | F42: 0 | G42: 0

Sheet Deductions
C2: =Facility -> 116
C3: UNBASE
C4: =year2 -> 2012 | D4: =year3 -> 2013 | E4: =year4 -> 2014 | F4: =year5 -> 2015 | G4: =year6 -> 2016
A5: MCARE | B5: P | C5: =Data!E93 -> 0 | D5: 0 | E5: 0 | F5: 0 | G5: 0
A6: MCAID | B6: P | C6: =Data!E94 -> 0 | D6: 0 | E6: 0 | F6: 0 | G6: 0
A7: SELECTH | B7: P | C7: =Data!E95 -> 0 | D7: 0 | E7: 0 | F7: 0 | G7: 0
A8: CONT | B8: P | C8: =Data!E96 -> 0 | D8: 0 | E8: 0 | F8: 0 | G8: 0
A9: NCONT | B9: P | C9: =Data!E97 -> 0 | D9: 0 | E9: 0 | F9: 0 | G9: 0
A10: UNINS | B10: P | C10: =Data!E98 -> 0 | D10: 0 | E10: 0 | F10: 0 | G10: 0
C11: =SUM(C5:C10) -> 0 | D11: =SUM(D5:D10) -> 0 | E11: =SUM(E5:E10) -> 0 | F11: =SUM(F5:F10) -> 0 | G11: =SUM(G5:G10) -> 0
A15: MCARE | B15: R | C15: =Data!E100 -> 0 | D15: 0 | E15: 0 | F15: 0 | G15: 0
A16: MCAID | B16: R | C16: =Data!E101 -> 0 | D16: 0 | E16: 0 | F16: 0 | G16: 0
A17: SELECTH | B17: R | C17: =Data!E102 -> 0 | D17: 0 | E17: 0 | F17: 0 | G17: 0
A18: CONT | B18: R | C18: =Data!E103 -> 0 | D18: 0 | E18: 0 | F18: 0 | G18: 0
A19: NCONT | B19: R | C19: =Data!E104 -> 0 | D19: 0 | E19: 0 | F19: 0 | G19: 0
A20: UNINS | B20: R | C20: 1 | D20: 1 | E20: 1 | F20: 1 | G20: 1

Sheet Productivity
C2: =Facility -> 116
C3: UNBASE
C4: =year3 -> 2013 | D4: =year4 -> 2014 | E4: =year5 -> 2015 | F4: =year6 -> 2016
A5: TSAL | B5: PR | C5: 0 | D5: =C5 -> 0 | E5: =D5 -> 0 | F5: 0
A6: TSAL | B6: PRF | C6: 0 | D6: =C6 -> 0 | E6: 0 | F6: 0
A8: PHY | B8: PR | C8: 0 | D8: 0 | E8: 0 | F8: 0
A9: PHY | B9: PRF | C9: 0 | D9: 0 | E9: 0 | F9: 0
A11: OBEN | B11: PR | C11: 0 | D11: 0 | E11: 0 | F11: 0
A12: OBEN | B12: PRF | C12: 0 | D12: 0 | E12: 0 | F12: 0
A14: TFEE | B14: PR | C14: 0 | D14: 0 | E14: 0 | F14: 0
A15: TFEE | B15: PRF | C15: 0 | D15: 0 | E15: 0 | F15: 0
A17: MSUP | B17: PR | C17: 0 | D17: =C17 -> 0 | E17: 0 | F17: 0
A18: MSUP | B18: PRF | C18: 0 | D18: 0 | E18: 0 | F18: 0
A20: NMSUP | B20: PR | C20: 0 | D20: 0 | E20: 0 | F20: 0
A21: NMSUP | B21: PRF | C21: 0 | D21: 0 | E21: 0 | F21: 0
A23: TOPS | B23: PR | C23: 0 | D23: 0 | E23: 0 | F23: 0
A24: TOPS | B24: PRF | C24: 0 | D24: 0 | E24: 0 | F24: 0
A26: OEXP | B26: PR | C26: 0 | D26: 0 | E26: =D26 -> 0 | F26: =E26 -> 0
A27: OEXP | B27: PRF | C27: 0 | D27: =C27 -> 0 | E27: =D27 -> 0 | F27: =E27 -> 0

Sheet Report Data
B2: =Facility -> 116 | C2: =Facility -> 116
B3: Actual | C3: =VLOOKUP(Lookup!D5,Lookup!$C$7:$D$17,2,0) -> Inflated
B4: V | C4: V
B5: =TEXT(Year,0) -> 2010 | C5: =year1 -> 2011 | D5: =year2 -> 2012 | E5: =year3 -> 2013 | F5: =year4 -> 2014 | G5: =year5 -> 2015 | H5: =year6 -> 2016
A6: IPREV | B6: 0 | C6: 519710564 | D6: 559484665.6 | E6: 608986099.8 | F6: 663633987.1 | G6: 608986099.8 | H6: 663633987.1
A7: OPREV | B7: 0 | C7: 532951472.1 | D7: 583582097.2 | E7: 642939958.1 | F7: 708104845.2 | G7: 642939958.1 | H7: 708104845.2
A8: SVREV | B8: 0 | C8: 0 | D8: 0 | E8: 0 | F8: 0 | G8: 0 | H8: 0
A9: LTREV | B9: 0 | C9: 1816941.613 | D9: 1881002.83 | E9: 1947234.155 | F9: 2025803.454 | G9: 1947234.155 | H9: 2025803.454
A10: OOR | B10: 0 | C10: 17852952.37 | D10: 18822123.94 | E10: 19743362.43 | F10: 21674310.62 | G10: 19743362.43 | H10: 21674310.62
A11: PTREV | B11: 0 | C11: 1054478978 | D11: 1144947766 | E11: 1253873292 | F11: 1373764636 | G11: 1253873292 | H11: 1373764636
A12: TREV | B12: 0 | C12: 1072331930 | D12: 1163769890 | E12: 1273616654 | F12: 1395438946 | G12: 1273616654 | H12: 1395438946
A14: MCARE | B14: 0 | C14: 239831500.8 | D14: 273986480.1 | E14: 306525473.8 | F14: 345879908 | G14: 306525473.8 | H14: 345879908
A15: MCAID | B15: 0 | C15: 65520292.91 | D15: 76359440.58 | E15: 92521939.41 | F15: 112965704.2 | G15: 92521939.41 | H15: 112965704.2
A16: DISC | B16: 0 | C16: 126096610.8 | D16: 138247446.8 | E16: 150584068.2 | F16: 163410126.8 | G16: 150584068.2 | H16: 163410126.8
A17: CHAR | B17: 0 | C17: 49773570.41 | D17: 54930523.44 | E17: 61594377.81 | F17: 69170537.1 | G17: 61594377.81 | H17: 69170537.1
A18: BDEBT | B18: 0 | C18: 37936768.12 | D18: 41400062.63 | E18: 46169828.07 | F18: 51470508.29 | G18: 46169828.07 | H18: 51470508.29
A19: ODED | B19: 0 | C19: 28621336.4 | D19: 31321348.5 | E19: 34605994.13 | F19: 38179011.82 | G19: 34605994.13 | H19: 38179011.82
A20: TDED | B20: 0 | C20: 547780079.5 | D20: 616245302.1 | E20: 692001681.5 | F20: 781075796.2 | G20: 692001681.5 | H20: 781075796.2
A22: NREV | B22: 0 | C22: 524551850.6 | D22: 547524587.5 | E22: 581614973 | F22: 614363150.1 | G22: 581614973 | H22: 614363150.1
A24: GTSAL | B24: 0 | C24: 167939662.4 | D24: 175154613.2 | E24: 184621579.2 | F24: 195895441.2 | G24: 184621579.2 | H24: 195895441.2
A25: EBEN | B25: 0 | C25: 59636221.86 | D25: 63532281.89 | E25: 68042636.52 | F25: 72582493.83 | G25: 68042636.52 | H25: 72582493.83
A26: TFEE | B26: 0 | C26: 16662395.92 | D26: 16991675.78 | E26: 17611997.77 | F26: 18328732.1 | G26: 17611997.77 | H26: 18328732.1
A27: TSUP | B27: 0 | C27: 93907634.19 | D27: 98933663.67 | E27: 106319042.8 | F27: 114683320.1 | G27: 106319042.8 | H27: 114683320.1
A28: TOPS | B28: 0 | C28: 16163940.89 | D28: 16245696.17 | E28: 16632671.56 | F28: 17030250.79 | G28: 16632671.56 | H28: 17030250.79
A29: AOEXP | B29: 0 | C29: 27138313.22 | D29: 28632765.77 | E29: 29260504.43 | F29: 29672269.66 | G29: 29260504.43 | H29: 29672269.66
A31: EBIDA | B31: 0 | C31: 87134231.99 | D31: 89399011.74 | E31: 96226246.64 | F31: 99374032.61 | G31: 96226246.64 | H31: 99374032.61
A33: INT | B33: 0 | C33: 9919484 | D33: 10231104.68 | E33: 10721683.72 | F33: 12242221.42 | G33: 10721683.72 | H33: 12242221.42
A34: DEP | B34: 0 | C34: 27176497.83 | D34: 26280861.67 | E34: 26967395.1 | F34: 29122398.33 | G34: 26967395.1 | H34: 29122398.33
A35: TCORP | B35: 0 | C35: 55969450.09 | D35: 58634879.38 | E35: 62900294.08 | F35: 66796609.84 | G35: 62900294.08 | H35: 66796609.84
A37: TEXP | B37: 0 | C37: 474513600.4 | D37: 494637542.2 | E37: 523077805.2 | F37: 556353737.3 | G37: 523077805.2 | H37: 556353737.3
A39: NOI | B39: 0 | C39: 50038250.17 | D39: 52887045.39 | E39: 58537167.82 | F39: 58009412.87 | G39: 58537167.82 | H39: 58009412.87
A41: 9011 | B41: 0 | C41: 24530 | D41: 24852.09 | E41: 25297.95145 | F41: 25792.73292 | G41: 25297.95145 | H41: 25792.73292
A42: 9001 | B42: 0 | C42: 88633.77944 | D42: 89642.99392 | E42: 91203.86513 | F42: 92917.71231 | G42: 91203.86513 | H42: 92917.71231
A43: 9146 | B43: 0 | C43: 5245 | D43: 5277.795 | E43: 5330.57295 | F43: 5397.75204 | G43: 5330.57295 | H43: 5397.75204
A44: 9031 | B44: 0 | C44: 19764 | D44: 20097.4475 | E44: 20448.57969 | F44: 20840.99501 | G44: 20448.57969 | H44: 20840.99501
A45: 9209 | B45: 0 | C45: 11274 | D45: 11572.26 | E45: 11937.7325 | F45: 12327.13665 | G45: 11937.7325 | H45: 12327.13665
A46: 9309 | B46: 0 | C46: 79933 | D46: 81103.125 | E46: 83203.42955 | F46: 85361.2538 | G46: 83203.42955 | H46: 85361.2538
A47: 9308IMG | B47: 0 | C47: 192161 | D47: 199606.44 | E47: 207392.1976 | F47: 214991.0486 | G47: 207392.1976 | H47: 214991.0486
A48: 9308CVS | B48: 0 | C48: 61361 | D48: 63512.73 | E48: 65784.5919 | F48: 67819.9546 | G48: 65784.5919 | H48: 67819.9546
A50: CAPEX | B50: 0 | C50: 0 | D50: 0 | E50: 0 | F50: 0 | G50: 0 | H50: 0
A52: PROE | B52: 0 | C52: 2700.180588 | D52: 2725.949167 | E52: 2768.288649 | F52: 2813.171067 | G52: 2768.288649 | H52: 2813.171067

Sheet Final Report
A1: =VLOOKUP('Report Data'!$B$2,Lookup!A:B,2,0) -> Alta View Hospital
A2: =VLOOKUP('Report Data'!C3,Lookup!D:E,2,0)&" Financial Projection" -> Productivity Adjusted Inflated Financial Projection
A3: =TODAY() -> 2012-04-11
A4: (in thousands)
C7: =year1 -> 2011 | E7: =year2 -> 2012 | G7: =year3 -> 2013 | I7: =year4 -> 2014 | K7: =year5 -> 2015 | M7: =year6 -> 2016
A9: Inpatient Revenue | C9: ='Report Data'!C6/1000 -> 519710.564 | D9: =C9/C$13 -> 0.484654564 | E9: ='Report Data'!D6/1000 -> 559484.6656 | F9: =E9/E$13 -> 0.4807519688 | G9: ='Report Data'!E6/1000 -> 608986.0998 | H9: =G9/G$13 -> 0.4781549437 | I9: ='Report Data'!F6/1000 -> 663633.9871 | J9: =I9/I$13 -> 0.4755736457 | K9: ='Report Data'!G6/1000 -> 608986.0998 | L9: =K9/K$13 -> 0.4781549437 | M9: ='Report Data'!H6/1000 -> 663633.9871 | N9: =M9/M$13 -> 0.4755736457
A10: Outpatient Revenue | C10: ='Report Data'!C7/1000 -> 532951.4721 | D10: =C10/C$13 -> 0.497002334 | E10: ='Report Data'!D7/1000 -> 583582.0972 | F10: 0.501458323 | G10: ='Report Data'!E7/1000 -> 642939.9581 | H10: =G10/G$13 -> 0.5048143457 | I10: ='Report Data'!F7/1000 -> 708104.8452 | J10: =I10/I$13 -> 0.5074423693 | K10: ='Report Data'!G7/1000 -> 642939.9581 | L10: =K10/K$13 -> 0.5048143457 | M10: ='Report Data'!H7/1000 -> 708104.8452 | N10: =M10/M$13 -> 0.5074423693
A11: Other Patient Revenue | C11: =('Report Data'!C8+'Report Data'!C9)/1000 -> 1816.941613 | D11: 0.001694383578 | E11: =('Report Data'!D8+'Report Data'!D9)/1000 -> 1881.00283 | F11: 0.001616301338 | G11: =('Report Data'!E8+'Report Data'!E9)/1000 -> 1947.234155 | H11: =G11/G$13 -> 0.001528901297 | I11: =('Report Data'!F8+'Report Data'!F9)/1000 -> 2025.803454 | J11: =I11/I$13 -> 0.001451732059 | K11: =('Report Data'!G8+'Report Data'!G9)/1000 -> 1947.234155 | L11: =K11/K$13 -> 0.001528901297 | M11: =('Report Data'!H8+'Report Data'!H9)/1000 -> 2025.803454 | N11: =M11/M$13 -> 0.001451732059
A12: Other Operating Revenue | C12: ='Report Data'!C10/1000 -> 17852.95237 | D12: 0.01664871844 | E12: ='Report Data'!D10/1000 -> 18822.12394 | F12: 0.01617340688 | G12: ='Report Data'!E10/1000 -> 19743.36243 | H12: =G12/G$13 -> 0.01550180925 | I12: ='Report Data'!F10/1000 -> 21674.31062 | J12: =I12/I$13 -> 0.0155322529 | K12: ='Report Data'!G10/1000 -> 19743.36243 | L12: =K12/K$13 -> 0.01550180925 | M12: ='Report Data'!H10/1000 -> 21674.31062 | N12: =M12/M$13 -> 0.0155322529
A13: Total Operating Revenue | C13: ='Report Data'!C12/1000 -> 1072331.93 | D13: =C13/C$13 -> 1 | E13: ='Report Data'!D12/1000 -> 1163769.89 | F13: =E13/E$13 -> 1 | G13: ='Report Data'!E12/1000 -> 1273616.654 | H13: =G13/G$13 -> 1 | I13: ='Report Data'!F12/1000 -> 1395438.946 | J13: =I13/I$13 -> 1 | K13: ='Report Data'!G12/1000 -> 1273616.654 | L13: =K13/K$13 -> 1 | M13: ='Report Data'!H12/1000 -> 1395438.946 | N13: =M13/M$13 -> 1
A15: Medicare Discount | C15: ='Report Data'!C14/1000 -> 239831.5008 | D15: =C15/C$13 -> 0.2236541635 | E15: ='Report Data'!D14/1000 -> 273986.4801 | F15: 0.235430116 | G15: ='Report Data'!E14/1000 -> 306525.4738 | H15: =G15/G$13 -> 0.2406732613 | I15: ='Report Data'!F14/1000 -> 345879.908 | J15: =I15/I$13 -> 0.2478645941 | K15: ='Report Data'!G14/1000 -> 306525.4738 | L15: =K15/K$13 -> 0.2406732613 | M15: ='Report Data'!H14/1000 -> 345879.908 | N15: =M15/M$13 -> 0.2478645941
A16: Medicaid Discount | C16: ='Report Data'!C15/1000 -> 65520.29291 | D16: 0.06110075721 | E16: ='Report Data'!D15/1000 -> 76359.44058 | F16: 0.06561386513 | G16: ='Report Data'!E15/1000 -> 92521.93941 | H16: 0.07264504519 | I16: ='Report Data'!F15/1000 -> 112965.7042 | J16: 0.08095352685 | K16: ='Report Data'!G15/1000 -> 92521.93941 | L16: 0.07264504519 | M16: ='Report Data'!H15/1000 -> 112965.7042 | N16: =M16/M$13 -> 0.08095352685
A17: Commercial Discounts | C17: ='Report Data'!C16/1000 -> 126096.6108 | D17: 0.117591025 | E17: ='Report Data'!D16/1000 -> 138247.4468 | F17: 0.1187927683 | G17: ='Report Data'!E16/1000 -> 150584.0682 | H17: 0.1182334321 | I17: ='Report Data'!F16/1000 -> 163410.1268 | J17: 0.1171030286 | K17: ='Report Data'!G16/1000 -> 150584.0682 | L17: 0.1182334321 | M17: ='Report Data'!H16/1000 -> 163410.1268 | N17: 0.1171030286
A18: Charity | C18: ='Report Data'!C17/1000 -> 49773.57041 | D18: 0.04641619728 | E18: ='Report Data'!D17/1000 -> 54930.52344 | F18: 0.04720050237 | G18: ='Report Data'!E17/1000 -> 61594.37781 | H18: 0.04836178735 | I18: ='Report Data'!F17/1000 -> 69170.5371 | J18: 0.04956901718 | K18: ='Report Data'!G17/1000 -> 61594.37781 | L18: 0.04836178735 | M18: ='Report Data'!H17/1000 -> 69170.5371 | N18: 0.04956901718
A19: Bad Debt | C19: ='Report Data'!C18/1000 -> 37936.76812 | D19: 0.03537782197 | E19: ='Report Data'!D18/1000 -> 41400.06263 | F19: 0.03557409674 | G19: ='Report Data'!E18/1000 -> 46169.82807 | H19: 0.03625096131 | I19: ='Report Data'!F18/1000 -> 51470.50829 | J19: 0.03688481565 | K19: ='Report Data'!G18/1000 -> 46169.82807 | L19: 0.03625096131 | M19: ='Report Data'!H18/1000 -> 51470.50829 | N19: 0.03688481565
A20: Other Deductions | C20: ='Report Data'!C19/1000 -> 28621.3364 | D20: 0.02669074341 | E20: ='Report Data'!D19/1000 -> 31321.3485 | F20: 0.02691369555 | G20: ='Report Data'!E19/1000 -> 34605.99413 | H20: 0.02717143656 | I20: ='Report Data'!F19/1000 -> 38179.01182 | J20: 0.02735985829 | K20: ='Report Data'!G19/1000 -> 34605.99413 | L20: 0.02717143656 | M20: ='Report Data'!H19/1000 -> 38179.01182 | N20: 0.02735985829
A21: Total Deductions | C21: ='Report Data'!C20/1000 -> 547780.0795 | D21: 0.5108307084 | E21: ='Report Data'!D20/1000 -> 616245.3021 | F21: 0.5295250441 | G21: ='Report Data'!E20/1000 -> 692001.6815 | H21: 0.5433359238 | I21: ='Report Data'!F20/1000 -> 781075.7962 | J21: 0.5597348406 | K21: ='Report Data'!G20/1000 -> 692001.6815 | L21: 0.5433359238 | M21: ='Report Data'!H20/1000 -> 781075.7962 | N21: 0.5597348406
A23: Net Revenue | C23: ='Report Data'!C22/1000 -> 524551.8506 | D23: 0.4891692916 | E23: ='Report Data'!D22/1000 -> 547524.5875 | F23: 0.4704749559 | G23: ='Report Data'!E22/1000 -> 581614.973 | H23: =G23/G$13 -> 0.4566640762 | I23: ='Report Data'!F22/1000 -> 614363.1501 | J23: =I23/I$13 -> 0.4402651594 | K23: ='Report Data'!G22/1000 -> 581614.973 | L23: =K23/K$13 -> 0.4566640762 | M23: ='Report Data'!H22/1000 -> 614363.1501 | N23: =M23/M$13 -> 0.4402651594
A25: Salaries | C25: ='Report Data'!C24/1000 -> 167939.6624 | D25: 0.1566116402 | E25: ='Report Data'!D24/1000 -> 175154.6132 | F25: 0.1505062253 | G25: ='Report Data'!E24/1000 -> 184621.5792 | H25: =G25/G$13 -> 0.1449585152 | I25: ='Report Data'!F24/1000 -> 195895.4412 | J25: =I25/I$13 -> 0.1403826672 | K25: ='Report Data'!G24/1000 -> 184621.5792 | L25: =K25/K$13 -> 0.1449585152 | M25: ='Report Data'!H24/1000 -> 195895.4412 | N25: =M25/M$13 -> 0.1403826672
A26: Benefits | C26: ='Report Data'!C25/1000 -> 59636.22186 | D26: 0.05561358399 | E26: ='Report Data'!D25/1000 -> 63532.28189 | F26: 0.0545917904 | G26: ='Report Data'!E25/1000 -> 68042.63652 | H26: 0.05342473835 | I26: ='Report Data'!F25/1000 -> 72582.49383 | J26: 0.05201409493 | K26: ='Report Data'!G25/1000 -> 68042.63652 | L26: 0.05342473835 | M26: ='Report Data'!H25/1000 -> 72582.49383 | N26: 0.05201409493
A27: Total Fees | C27: ='Report Data'!C26/1000 -> 16662.39592 | D27: 0.01553846851 | E27: ='Report Data'!D26/1000 -> 16991.67578 | F27: 0.01460054598 | G27: ='Report Data'!E26/1000 -> 17611.99777 | H27: 0.01382833501 | I27: ='Report Data'!F26/1000 -> 18328.7321 | J27: 0.01313474312 | K27: ='Report Data'!G26/1000 -> 17611.99777 | L27: 0.01382833501 | M27: ='Report Data'!H26/1000 -> 18328.7321 | N27: 0.01313474312
A28: Total Supplies | C28: ='Report Data'!C27/1000 -> 93907.63419 | D28: 0.08757328917 | E28: ='Report Data'!D27/1000 -> 98933.66367 | F28: 0.08501136226 | G28: ='Report Data'!E27/1000 -> 106319.0428 | H28: 0.08347805634 | I28: ='Report Data'!F27/1000 -> 114683.3201 | J28: 0.08218440541 | K28: ='Report Data'!G27/1000 -> 106319.0428 | L28: 0.08347805634 | M28: ='Report Data'!H27/1000 -> 114683.3201 | N28: 0.08218440541
A29: Other Purchased Services | C29: ='Report Data'!C28/1000 -> 16163.94089 | D29: 0.01507363573 | E29: ='Report Data'!D28/1000 -> 16245.69617 | F29: 0.0139595433 | G29: ='Report Data'!E28/1000 -> 16632.67156 | H29: 0.01305940175 | I29: ='Report Data'!F28/1000 -> 17030.25079 | J29: 0.01220422494 | K29: ='Report Data'!G28/1000 -> 16632.67156 | L29: 0.01305940175 | M29: ='Report Data'!H28/1000 -> 17030.25079 | N29: 0.01220422494
A30: All Other Expenses | C30: ='Report Data'!C29/1000 -> 27138.31322 | D30: 0.02530775449 | E30: ='Report Data'!D29/1000 -> 28632.76577 | F30: 0.02460345986 | G30: ='Report Data'!E29/1000 -> 29260.50443 | H30: 0.02297434187 | I30: ='Report Data'!F29/1000 -> 29672.26966 | J30: 0.02126375341 | K30: ='Report Data'!G29/1000 -> 29260.50443 | L30: 0.02297434187 | M30: ='Report Data'!H29/1000 -> 29672.26966 | N30: 0.02126375341
A31: Interest | C31: ='Report Data'!C33/1000 -> 9919.484 | D31: 0.009250385745 | E31: ='Report Data'!D33/1000 -> 10231.10468 | F31: 0.008791346787 | G31: ='Report Data'!E33/1000 -> 10721.68372 | H31: 0.008418297363 | I31: ='Report Data'!F33/1000 -> 12242.22142 | J31: 0.008773025468 | K31: ='Report Data'!G33/1000 -> 10721.68372 | L31: =K31/K$13 -> 0.008418297363 | M31: ='Report Data'!H33/1000 -> 12242.22142 | N31: =M31/M$13 -> 0.008773025468
A32: Depreciation | C32: ='Report Data'!C34/1000 -> 27176.49783 | D32: 0.02534336343 | E32: ='Report Data'!D34/1000 -> 26280.86167 | F32: 0.02258252418 | G32: ='Report Data'!E34/1000 -> 26967.3951 | H32: 0.02117387128 | I32: ='Report Data'!F34/1000 -> 29122.39833 | J32: 0.02086970441 | K32: ='Report Data'!G34/1000 -> 26967.3951 | L32: =K32/K$13 -> 0.02117387128 | M32: ='Report Data'!H34/1000 -> 29122.39833 | N32: =M32/M$13 -> 0.02086970441
A33: Corporate Charge | C33: ='Report Data'!C35/1000 -> 55969.45009 | D33: 0.05219414672 | E33: ='Report Data'!D35/1000 -> 58634.87938 | F33: 0.05038356801 | G33: ='Report Data'!E35/1000 -> 62900.29408 | H33: 0.0493871479 | I33: ='Report Data'!F35/1000 -> 66796.60984 | J33: 0.0478678125 | K33: ='Report Data'!G35/1000 -> 62900.29408 | L33: =K33/K$13 -> 0.0493871479 | M33: ='Report Data'!H35/1000 -> 66796.60984 | N33: 0.0478678125
A34: Total Expenses | C34: ='Report Data'!C37/1000 -> 474513.6004 | D34: 0.442506268 | E34: ='Report Data'!D37/1000 -> 494637.5422 | F34: 0.425030366 | G34: ='Report Data'!E37/1000 -> 523077.8052 | H34: 0.410702705 | I34: ='Report Data'!F37/1000 -> 556353.7373 | J34: 0.3986944314 | K34: ='Report Data'!G37/1000 -> 523077.8052 | L34: =K34/K$13 -> 0.410702705 | M34: ='Report Data'!H37/1000 -> 556353.7373 | N34: 0.3986944314
A36: Net Operating Income | C36: ='Report Data'!C39/1000 -> 50038.25017 | D36: =C36/C$13 -> 0.04666302361 | E36: ='Report Data'!D39/1000 -> 52887.04539 | F36: 0.04544458992 | G36: ='Report Data'!E39/1000 -> 58537.16782 | H36: =G36/G$13 -> 0.0459613712 | I36: ='Report Data'!F39/1000 -> 58009.41287 | J36: =I36/I$13 -> 0.04157072799 | K36: ='Report Data'!G39/1000 -> 58537.16782 | L36: =K36/K$13 -> 0.0459613712 | M36: ='Report Data'!H39/1000 -> 58009.41287 | N36: =M36/M$13 -> 0.04157072799
A38: EBIDA | C38: ='Report Data'!C31/1000 -> 87134.23199 | D38: =C38/C$13 -> 0.08125677279 | E38: ='Report Data'!D31/1000 -> 89399.01174 | F38: =E38/E$13 -> 0.07681846088 | G38: ='Report Data'!E31/1000 -> 96226.24664 | H38: =G38/G$13 -> 0.07555353983 | I38: ='Report Data'!F31/1000 -> 99374.03261 | J38: =I38/I$13 -> 0.07121345787 | K38: ='Report Data'!G31/1000 -> 96226.24664 | L38: =K38/K$13 -> 0.07555353983 | M38: ='Report Data'!H31/1000 -> 99374.03261 | N38: =M38/M$13 -> 0.07121345787
A40: FTE's | C40: ='Report Data'!C52 -> 2700.180588 | E40: ='Report Data'!D52 -> 2725.949167 | G40: ='Report Data'!E52 -> 2768.288649 | I40: ='Report Data'!F52 -> 2813.171067 | K40: ='Report Data'!G52 -> 2768.288649 | M40: ='Report Data'!H52 -> 2813.171067
A42: Key Indicators
A43: Admissions | C43: ='Report Data'!C41 -> 24530 | E43: ='Report Data'!D41 -> 24852.09 | G43: ='Report Data'!E41 -> 25297.95145 | I43: ='Report Data'!F41 -> 25792.73292 | K43: ='Report Data'!G41 -> 25297.95145 | M43: ='Report Data'!H41 -> 25792.73292
A44: Patient Days | C44: ='Report Data'!C42 -> 88633.77944 | E44: ='Report Data'!D42 -> 89642.99392 | G44: ='Report Data'!E42 -> 91203.86513 | I44: ='Report Data'!F42 -> 92917.71231 | K44: ='Report Data'!G42 -> 91203.86513 | M44: ='Report Data'!H42 -> 92917.71231
A45: Surgeries | C45: ='Report Data'!C43+'Report Data'!C44 -> 25009 | E45: ='Report Data'!D43+'Report Data'!D44 -> 25375.2425 | G45: ='Report Data'!E43+'Report Data'!E44 -> 25779.15264 | I45: ='Report Data'!F43+'Report Data'!F44 -> 26238.74705 | K45: ='Report Data'!G43+'Report Data'!G44 -> 25779.15264 | M45: ='Report Data'!H43+'Report Data'!H44 -> 26238.74705
A46: ER Visits | C46: ='Report Data'!C45+'Report Data'!C46 -> 91207 | E46: ='Report Data'!D45+'Report Data'!D46 -> 92675.385 | G46: ='Report Data'!E45+'Report Data'!E46 -> 95141.16205 | I46: ='Report Data'!F45+'Report Data'!F46 -> 97688.39045 | K46: ='Report Data'!G45+'Report Data'!G46 -> 95141.16205 | M46: ='Report Data'!H45+'Report Data'!H46 -> 97688.39045
A47: Imaging Procedures | C47: ='Report Data'!C47 -> 192161 | E47: ='Report Data'!D47 -> 199606.44 | G47: ='Report Data'!E47 -> 207392.1976 | I47: ='Report Data'!F47 -> 214991.0486 | K47: ='Report Data'!G47 -> 207392.1976 | M47: ='Report Data'!H47 -> 214991.0486
A48: Cardiovascular Procedures | C48: ='Report Data'!C48 -> 61361 | E48: ='Report Data'!D48 -> 63512.73 | G48: ='Report Data'!E48 -> 65784.5919 | I48: ='Report Data'!F48 -> 67819.9546 | K48: ='Report Data'!G48 -> 65784.5919 | M48: ='Report Data'!H48 -> 67819.9546

Sheet CashFlow
A1: ='Final Report'!A1:L1 -> Alta View Hospital
A2: Statement of Cash Flows
A3: ='Final Report'!A3:L3 -> 2012-04-11
A4: ='Final Report'!A4:L4 -> (in thousands)
C6: ='Final Report'!C7 -> 2011 | E6: ='Final Report'!E7 -> 2012 | G6: ='Final Report'!G7 -> 2013 | I6: ='Final Report'!I7 -> 2014 | K6: ='Final Report'!K7 -> 2015 | M6: ='Final Report'!M7 -> 2016
A7: Net Operating Income | C7: ='Final Report'!C36 -> 50038.25017 | E7: ='Final Report'!E36 -> 52887.04539 | G7: ='Final Report'!G36 -> 58537.16782 | I7: ='Final Report'!I36 -> 58009.41287 | K7: ='Final Report'!K36 -> 58537.16782 | M7: ='Final Report'!M36 -> 58009.41287
A9: ="+ Depreciation" -> + Depreciation | C9: ='Final Report'!C32 -> 27176.49783 | E9: ='Final Report'!E32 -> 26280.86167 | G9: ='Final Report'!G32 -> 26967.3951 | I9: ='Final Report'!I32 -> 29122.39833 | K9: ='Final Report'!K32 -> 26967.3951 | M9: ='Final Report'!M32 -> 29122.39833
A10: ="- Capital Expenditures" -> - Capital Expenditures | C10: =-'Report Data'!C50/1000 -> 0 | E10: =-'Report Data'!D50/1000 -> 0 | G10: =-'Report Data'!E50/1000 -> 0 | I10: =-'Report Data'!F50/1000 -> 0 | K10: =-'Report Data'!G50/1000 -> 0 | M10: =-'Report Data'!I50/1000 -> 0
A11: Change in Working Capital | C11: =-(('Report Data'!C12-'Report Data'!B12)*0.07)/1000 -> -75063.2351 | E11: =-0.07*('Final Report'!E13-'Final Report'!C13) -> -6400.657168 | G11: =-0.07*('Final Report'!G13-'Final Report'!E13) -> -7689.273539 | I11: =-0.07*('Final Report'!I13-'Final Report'!G13) -> -8527.560432 | K11: =-0.07*('Final Report'!K13-'Final Report'!I13) -> 8527.560432 | M11: =-0.07*('Final Report'!M13-'Final Report'!K13) -> -8527.560432
A13: Cash Flow | C13: =SUM(C7:C11) -> 2151.512887 | E13: =SUM(E7:E11) -> 72767.24989 | G13: =SUM(G7:G11) -> 77815.28937 | I13: =SUM(I7:I11) -> 78604.25077 | K13: =SUM(K7:K11) -> 94032.12334 | M13: =SUM(M7:M11) -> 78604.25077
A15: Discounted Cash Flow @10% | C15: =C13 -> 2151.512887 | E15: =E13/(1.1^(E6-$C$6)) -> 66152.04535 | G15: =G13/(1.1^(G6-$C$6)) -> 64310.15651 | I15: =I13/(1.1^(I6-$C$6)) -> 59056.53702 | K15: =K13/(1.1^(K6-$C$6)) -> 64225.20548 | M15: =M13/(1.1^(M6-$C$6)) -> 48807.05538

Sheet Lookup (hidden)
D5: 4
A7: IHCE | B7: IHC - Eliminations | C7: 1 | D7: UNBASE | E7: Uninflated Baseline
A8: 010 | B8: Parent Company | C8: 2 | D8: INBASE | E8: Inflated Baseline
A9: 710 | B9: IHC Management Company | C9: 3 | D9: Uninfl | E9: Productivity Adjusted Uninflated
A10: 810 | B10: Healthcare Captive Insurance Co. | C10: 4 | D10: Inflated | E10: Productivity Adjusted Inflated
A11: 910 | B11: IHC Foundation, Inc. | C11: 5 | D11: Actual | E11: Actual
A12: 610 | B12: SelectHealth, Inc. | C12: 6 | D12: UF10 | E12: Uninflated Final - 2010
A13: 611 | B13: IHC Care, Inc. | C13: 7 | D13: IF10 | E13: Inflated Final - 2010
A14: 612 | B14: IHC Insurance Agency
A15: 613 | B15: IHC Group, Inc.
A16: 614 | B16: SelectHealth Benefit Assurance Company, Inc.
A17: HPLANS | B17: IHC Health Plans, Inc
A18: 310 | B18: PSI Administration
A19: 311 | B19: Affiliated Services, Inc
A20: 333 | B20: Heritage Schools - IHC
A21: PSI | B21: IHC Professional Services, Inc
A22: OTHENT | B22: Other Non-Hospital Entities
A23: 107 | B23: A/R Management
A24: 109 | B24: Intermountain Homecare
A25: 109HH2 | B25: Home Health and Private Duty - 109
A26: HMESTO | B26: HME Stores - 109
A27: 109HSP | B27: Hospice Free-Standing - 109
A28: 109AAA | B28: IV Therapy - 109
A29: 109B00 | B29: Other - 109
A30: 653109 | B30: Home Med Equip - HME-Wheelchair/PT - 109
A31: 113 | B31: Supply Chain Organization
A32: 153 | B32: Intermountain Central Laboratory
A33: 116 | B33: Alta View Hospital
A34: 124 | B34: Cottonwood Hospital Medical Center
A35: 128 | B35: LDS Hospital
A36: 363 | B36: Avenues Surgical Center
A37: TLDS | B37: Total LDS/Avenues Surgical
A38: 139 | B38: Riverton Hospital
A39: 154 | B39: Intermountain Medical Center
A40: 270 | B40: Rehabilitation Services
A41: 370 | B41: Orthopedic Specialty Hospital
A42: 161 | B42: Wasatch Canyons Hospital
A43: 163 | B43: IHC Counseling Services
A44: UCR | B44: Urban Central Region Hospitals
A45: 138 | B45: Primary Children's Medical Center
A46: 375 | B46: Primary Children's - Riverton
A47: 138 | B47: Primary Children's Medical Center
A48: 375 | B48: Primary Children's - Riverton
A49: PCR | B49: Primary Children's Region
A50: 120 | B50: Bear River Valley Hospital
A51: 130 | B51: Logan Regional Hospital
A52: 367 | B52: Logan Surgical Center
A53: TLOGAN | B53: Total Logan/Logan Surgical
A54: 132 | B54: McKay-Dee Hospital Center
A55: 364 | B55: McKay-Dee Surgical Center, LLC
A56: 366 | B56: McKay-Dee Surgical Center
A57: TMCKAY | B57: Total McKay-Dee Hospital Center
A58: UNR | B58: Urban North Region Hospitals
A59: 118 | B59: American Fork Hospital
A60: 134 | B60: Orem Community Hospital
A61: 144 | B61: Utah Valley Regional Medical Center
A62: USR | B62: Urban South Region Hospitals
A63: 126 | B63: Dixie Regional Medical Center
A64: 146 | B64: Valley View Medical Center
A65: SWR | B65: Southwest Region
A66: 122 | B66: Cassia Regional Medical Center
A67: 125 | B67: Delta Community Medical Center
A68: 127 | B68: Fillmore Community Hospital
A69: 140 | B69: Sanpete Valley Hospital
A70: 142 | B70: Sevier Valley Medical Center
A71: 143 | B71: Park City Medical Center
A72: 365 | B72: Park City Surgical Center
A73: TPM | B73: Total Park City Medical Center
A74: 148 | B74: Heber Valley Medical Center
A75: RUR | B75: Rural Region
A76: 136 | B76: Pocatello Regional Medical Center
A77: 150 | B77: Evanston Regional Hospital
A78: 152 | B78: Garfield Memorial Hospital & Clinics
A79: 182 | B79: Garfield Memorial Hospital
A80: 188 | B80: Millard County Care Center
A81: THOSP | B81: Hospital Entities
A82: VOLCO | B82: Volume Adjusting Entities
A83: 100 | B83: Corporate Treasury
A84: 103 | B84: Self Insurance Program
A85: 105 | B85: Employee Benefit Program
A86: 110 | B86: Central Office
A87: 111 | B87: Window
A88: 112 | B88: Lost Creek LLC
A89: 114 | B89: Information Technology
A90: 312 | B90: 5300 South Center, LLC
A91: 313 | B91: 5245 College Drive LLC
A92: 400 | B92: Intermountain Medical Group
A93: 420 | B93: Medical Group Contingency
A94: 620 | B94: Utah Community Health Plans
A95: 730 | B95: Research Admin/Sponsored Projects
A96: 740 | B96: Federal Grants
A97: 750 | B97: IHC Intellectual Asset Management (IAM)
A98: NONH | B98: Non-Hospital Entities
A99: IHCHNE | B99: IHCHS - No Eliminations
A100: IHCHE | B100: IHCHS - Eliminations
A101: IHCH | B101: IHC Health Services, Inc
A102: IHC | B102: Intermountain Healthcare, Inc

Sheet New (hidden)
C1: Working
C2: V
C3: M
C4: FY11
C5: UNBASE
C6: Jan
C7: IHC | G7: New/Not Old | H7: Old/Not New
A8: CAPEX | B8: Capital Expenditures | C8: 0 | D8: CAPEX | G8: Minor Equipment - $2000 to $5000 | H8: NMSUP
A9: BDEBT | B9: Tot Bad Debt | C9: 0 | D9: BDEBT | G9: Tot Non Operating Revenue | H9: NOI% | I9: =VLOOKUP(H9,Old!$A$5:$B$72,2,FALSE) -> NOI%
A10: CHAR | B10: Tot Charity | C10: 0 | D10: CHAR | G10: Net Operating Income | H10: EBIDA | I10: =VLOOKUP(H10,Old!$A$5:$B$72,2,FALSE) -> EBIDA
A11: CONT | B11: Contracted Payers | C11: 0 | D11: CONT | G11: Provider Work RVUs | H11: PHYE | I11: =VLOOKUP(H11,Old!$A$5:$B$72,2,FALSE) -> Total Physician FTES
A12: NCONT | B12: Other Non Contracted Payers | C12: 0 | D12: NCONT | G12: IP Base Flexing Stat
A13: SH | B13: SelectHealth | C13: 0 | D13: SELECTH | G13: OP Base Flexing Stat
A14: ODED | B14: Tot Other Deductions | C14: 0 | D14: ODED | G14: Other Possible Base Stat 2
A15: UNINS | B15: Uninsured/Other | C15: 0 | D15: UNINS | G15: Reg, Educ & Orien- Hrs : Management
A16: MCAID | B16: Tot Medicaid C/A | C16: 0 | D16: MCARE | G16: Reg, Educ & Orien- Hrs : Prof Clin
A17: MCARE | B17: Tot Medicare C/A | C17: 0 | D17: MCAID | G17: Reg, Educ & Orien- Hrs : RN
A18: OOR | B18: Tot Other Operating Rev | C18: 0 | D18: OOR | G18: Reg, Educ & Orien- Hrs : LPN
A19: AOIPR | B19: All Other IP Revenue | C19: 0 | D19: AOIP | G19: Reg, Educ & Orien- Hrs : Aides Order
A20: ICUR | B20: Plan IP Intensive Care Revenue | C20: 0 | D20: ICU | G20: Reg, Educ & Orien- Hrs : Med Prac
A21: NICR | B21: Plan IP Newborn Intensive Care Revenue | C21: 0 | D21: NIC | G21: Reg, Educ & Orien- Hrs : Students
A22: ONSR | B22: Plan Other Nursing Revenue | C22: 0 | D22: ONS | G22: Reg, Educ & Orien- Hrs : Tech/Prof Non-Cl
A23: PEDR | B23: Plan IP Pediatric Revenue | C23: 0 | D23: PED | G23: Reg, Educ & Orien- Hrs : IT Prof - Non-Cl
A24: WNOR | B24: Womens/Nursery/Obstetrics Revenue | C24: 0 | D24: WNO | G24: Reg, Educ & Orien- Hrs : Technicians Clin
A25: LTREV | B25: Tot Geriatrics Revenue | C25: 0 | D25: LTREV | G25: Reg, Educ & Orien- Hrs : Mod Duty
A26: AOOPR | B26: All Other OP Revenue | C26: 0 | D26: AOOP | G26: Reg, Educ & Orien- Hrs : Trades/Spec Non-Clin
A27: CVSR | B27: Plan OP Cardiovascular Revenue | C27: 0 | D27: CVS | G27: Reg, Educ & Orien- Hrs : Transfer
A28: EDR | B28: Plan OP Emergency Department Revenue | C28: 0 | D28: EDR | G28: Reg, Educ & Orien- Hrs : Gen Off/Maint
A29: IMGR | B29: Plan OP Imaging Revenue | C29: 0 | D29: IMG | G29: Reg, Educ & Orien- Hrs : Nurse Nwrk
A30: SURR | B30: Plan OP Surgery Revenue | C30: 0 | D30: SUR | G30: Reg, Educ & Orien- Hrs : Nurse Out
A31: SVREV | B31: Tot Other Service Revenue | C31: 0 | D31: SVREV | G31: Reg, Educ & Orien- Hrs : Other Out
A32: OBEN | B32: All Other Benefits (Including FICA) | C32: 0 | D32: OBEN
A33: RET | B33: Retirement Benefit | C33: 0 | D33: RET
A34: PHY | B34: Tot Physician Salaries | C34: 0 | D34: PHY
A35: TSAL | B35: Total Staff Salaries | C35: 0 | D35: TSAL
A36: TFEE | B36: Tot Prof Fees | C36: 0 | D36: TFEE
A37: MSUP | B37: Tot Med/Surg Supplies | C37: 0 | D37: MSUP
A38: 4182 | B38: Minor Equipment - $2000 to $5000 | C38: 0
A39: TOPS | B39: Tot Util & Purchased Svc | C39: 0 | D39: TOPS
A40: 4472 | B40: Corporate Charge - Intrmtn | C40: 0 | D40: 4472
A41: MEXP | B41: Total Medical Expense | C41: 0 | D41: MEXP
A42: OEXP | B42: Total Other Expense | C42: 0 | D42: OEXP
A43: TCENT | B43: Central Services Transfer | C43: 0 | D43: TCENT
A44: TINS | B44: Insurance Transfers | C44: 0 | D44: TINS
A45: TREIM | B45: Transfers-Reimbursed | C45: 0 | D45: TREIM
A46: DEP | B46: Tot Deprec & Amortization | C46: 0 | D46: DEP
A47: INT | B47: Tot Interest | C47: 0 | D47: INT
A48: 4471 | B48: Corporate Charge - Health Svcs | C48: 0 | D48: 4471
A49: 4474 | B49: System Integration Charge | C49: 0 | D49: 4474
A50: 4475 | B50: Corp Data Process Chg | C50: 0 | D50: 4475 | E50: 4477
A51: NONOP | B51: Tot Non Operating Revenue | C51: 0 | E51: NOI%
A52: EBIDA% | B52: EBIDA% | C52: 0 | D52: EBIDA% | E52: EBIDA
A53: NOI | B53: Net Operating Income | C53: 0
A54: 9160 | B54: Provider Work RVUs | C54: 0
A55: IBASE | B55: IP Base Flexing Stat | C55: 0 | E55: PHYE
A56: OBASE | B56: OP Base Flexing Stat | C56: 0
A57: OBAS2 | B57: Other Possible Base Stat 2 | C57: 0
A58: PROEPLN | B58: Productive FTEs PLN | C58: 0
A59: 9146PLN | B59: IP Cases - Adm PLN | C59: 0 | D59: 9146
A60: 9209PLN | B60: IP ER Visits PLN | C60: 0 | D60: 9209
A61: 9011AOIP | B61: All Other Inpatient Acute Admissions | C61: 0 | D61: 9011AOIP
A62: 9011ICU | B62: ICU Acute Admissions | C62: 0 | D62: 9011ICU
A63: 9011NIC | B63: NICU Acute Admissions | C63: 0 | D63: 9011NIC
A64: 9011ONS | B64: Other Nursing Acute Admissions | C64: 0 | D64: 9011ONS
A65: 9011PED | B65: Pediatric Acute Admissions | C65: 0 | D65: 9011PED
A66: 9011WNO | B66: Womens/Obstetric Acute Admissions | C66: 0 | D66: 9011WNO
A67: 9001AOIP | B67: All Other Inpatient Acute Patient Days | C67: 0 | D67: 9001AOIP
A68: 9001ICU | B68: ICU Acute Patient Days | C68: 0 | D68: 9001ICU
A69: 9001NIC | B69: NICU Acute Patient Days | C69: 0 | D69: 9001NIC
A70: 9001ONS | B70: Other Nursing Acute Patient Days | C70: 0 | D70: 9001ONS
A71: 9001PED | B71: Pediatric Acute Patient Days | C71: 0 | D71: 9001PED
A72: 9001WNO | B72: Womens/Obstetric Acute Patient Days | C72: 0 | D72: 9001WNO
A73: 9031PLN | B73: Total OP Surgeries PLN | C73: 0 | D73: 9031
A74: 9308CVS | B74: OP Cardiovascular Procedures | C74: 0 | D74: 9308CVS
A75: 9308IMG | B75: OP Imaging Procedures | C75: 0 | D75: 9308IMG | E75: Accounts
A76: 9309PLN | B76: OP ER Visits PLN | C76: 0 | D76: 9309
A77: 4003H.01 | B77: Reg, Educ & Orien- Hrs : Management | C77: 0
A78: 4004H.01 | B78: Reg, Educ & Orien- Hrs : Prof Clin | C78: 0
A79: 4005H.01 | B79: Reg, Educ & Orien- Hrs : RN | C79: 0
A80: 4006H.01 | B80: Reg, Educ & Orien- Hrs : LPN | C80: 0
A81: 4007H.01 | B81: Reg, Educ & Orien- Hrs : Aides Order | C81: 0
A82: 4009H.01 | B82: Reg, Educ & Orien- Hrs : Med Prac | C82: 0
A83: 4010H.01 | B83: Reg, Educ & Orien- Hrs : Students | C83: 0
A84: 4014H.01 | B84: Reg, Educ & Orien- Hrs : Tech/Prof Non-Cl | C84: 0
A85: 4015H.01 | B85: Reg, Educ & Orien- Hrs : IT Prof - Non-Cl | C85: 0
A86: 4016H.01 | B86: Reg, Educ & Orien- Hrs : Technicians Clin | C86: 0
A87: 4023H.01 | B87: Reg, Educ & Orien- Hrs : Mod Duty | C87: 0
A88: 4024H.01 | B88: Reg, Educ & Orien- Hrs : Trades/Spec Non-Clin | C88: 0
A89: 4027H.01 | B89: Reg, Educ & Orien- Hrs : Transfer | C89: 0
A90: 4029H.01 | B90: Reg, Educ & Orien- Hrs : Gen Off/Maint | C90: 0
A91: 4026H.01 | B91: Reg, Educ & Orien- Hrs : Nurse Nwrk | C91: 0
A92: 4070H.01 | B92: Reg, Educ & Orien- Hrs : Nurse Out | C92: 0
A93: 4071H.01 | B93: Reg, Educ & Orien- Hrs : Other Out | C93: 0
A94: Account | B94: Account | C94: 0

Sheet Old (hidden)
C1: V
C2: 2011
C3: UNBASE
C4: IHC
A5: ICU | B5: Intensive Care Unit Revenue
A6: NIC | B6: Newborn Intensive Care Revenue
A7: ONS | B7: Other Nursing Services Revenue
A8: PED | B8: Pediatric Revenue
A9: WNO | B9: Womens/Nursery/Obstetrics Revenue
A10: AOIP | B10: All Other IP Revenue
A11: CVS | B11: OP Cardiovascular Revenue
A12: EDR | B12: OP Emergency Department Revenue
A13: IMG | B13: OP Imaging Revenue
A14: SUR | B14: OP Surgery Revenue
A15: AOOP | B15: All Other OP Revenue
A16: SVREV | B16: Tot Other Service Revenue
A17: LTREV | B17: Tot Geriatrics Revenue
A18: OOR | B18: Tot Other Operating Rev
A19: MCARE | B19: Tot Medicare C/A
A20: MCAID | B20: Tot Medicaid C/A
A21: SELECTH | B21: SelectHealth
A22: CONT | B22: Contracted Payers
A23: NCONT | B23: Other Non Contracted Payers
A24: UNINS | B24: Uninsured/Other
A25: BDEBT | B25: Tot Bad Debt
A26: CHAR | B26: Uninsured
A27: ODED | B27: Tot Other Deductions
A28: TSAL | B28: Total Staff Salaries
A29: PHY | B29: Tot Physician Salaries
A30: RET | B30: Retirement Benefit
A31: OBEN | B31: All Other Benefits (Including FICA)
A32: TFEE | B32: Tot Prof Fees
A33: MSUP | B33: Tot Med/Surg Supplies
A34: NMSUP | B34: Tot Non-Med/Surg Supplies
A35: TOPS | B35: Tot Util & Purchased Svc
A36: TREIM | B36: Transfers-Reimbursed
A37: TCENT | B37: Central Services Transfer
A38: TINS | B38: Insurance Transfers
A39: OEXP | B39: Other Expenses
A40: MEXP | B40: Total Medical Expense
A41: 4472 | B41: Central Charge- IHC
A42: INT | B42: Tot Interest
A43: DEP | B43: Tot Deprec & Amortization
A44: 4471 | B44: Corp Charge-IHCH
A45: 4474 | B45: System Integration Charge
A46: 4475 | B46: Corp Data Process Chg
A47: 4477 | B47: Revenue Cycle Charge
A48: NOI% | B48: NOI%
A49: EBIDA | B49: EBIDA
A50: EBIDA% | B50: EBIDA%
A51: PROE | B51: Productive FTES
A52: PHYE | B52: Total Physician FTES
A53: 9031 | B53: Total OP Surgeries
A54: 9308CVS | B54: OP Cardiovascular Procedures
A55: 9308IMG | B55: OP Imaging Procedures
A56: 9309 | B56: OP ER Visits
A57: 9011AOIP | B57: All Other Inpatient Acute Admissions
A58: 9011ICU | B58: ICU Acute Admissions
A59: 9011NIC | B59: NICU Acute Admissions
A60: 9011ONS | B60: Other Nursing Acute Admissions
A61: 9011PED | B61: Pediatric Acute Admissions
A62: 9011WNO | B62: Womens/Obstetic Acute Admissions
A63: 9001AOIP | B63: All Other Inpatient Acute Patient Days
A64: 9001ICU | B64: ICU Acute Patient Days
A65: 9001NIC | B65: NICU Acute Patient Days
A66: 9001ONS | B66: Other Nursing Acute Patient Days
A67: 9001PED | B67: Pediatric Acute Patient Days
A68: 9001WNO | B68: Womens/Obstetric Acute Patient Days
A69: 9146 | B69: IP Surgery Cases
A70: 9209 | B70: IP ER Visits
A71: CAPEX | B71: Capital Expenditures
A72: Accounts | B72: Accounts

Sheet Sheet1
B1: V
B2: Y
B3: 2010
B4: Actual
B5: Jun
B6: IHC
A7: 4005 | B7: 0
